Workbook

Sheet 计数统计表
A1: 方向 | B1: 工艺学硕 | C1: 工艺专硕 | D1: 催化学硕 | E1: 催化专硕 | F1: 工程学硕 | G1: 工程专硕 | H1: 环境学硕 | I1: 环境专硕 | J1: 国际班 | K1: 总计
A2: 人数 | B2: 63 | C2: 36 | D2: 36 | E2: 20 | F2: 48 | G2: 28 | H2: 31 | I2: 13 | J2: 22 | K2: =SUM(B2:J2) -> 297

Sheet 工艺学硕
A1: 序号 | B1: 学号 | C1: 姓名 | D1: 方向 | E1: 德育成绩 | K1: 智育成绩 | Q1: 文体成绩 | W1: 总分 | X1: 排名
E2: 基础分 | F2: 奖励分 | G2: 惩罚分 | H2: 个人德育总分 | I2: 个人德育总分/基准 | J2: 德育总成绩 | K2: 基础分 | L2: 奖励分 | M2: 惩罚分 | N2: 个人智育总分 | O2: 个人智育总分/基准 | P2: 智育总成绩 | Q2: 基础分 | R2: 奖励分 | S2: 惩罚分 | T2: 个人文体总分 | U2: 个人文体总分/基准 | V2: 文体总成绩
A3: 1 | B3: 2022210594 | C3: 王新茹 | D3: 工艺学硕 | E3: — | F3: — | G3: — | H3: — | I3: — | J3: — | K3: — | L3: — | M3: — | N3: — | O3: — | P3: — | Q3: — | R3: — | S3: — | T3: — | U3: — | V3: — | W3: — | X3: — | Y3: 助管
A4: 2 | B4: 2022210520 | C4: 倪鹏磊 | D4: 工艺学硕 | E4: — | F4: — | G4: — | H4: — | I4: — | J4: — | K4: — | L4: — | M4: — | N4: — | O4: — | P4: — | Q4: — | R4: — | S4: — | T4: — | U4: — | V4: — | W4: — | X4: — | Y4: 兼职辅导员
A5: 3 | B5: 2022210551 | C5: 张欣颖 | D5: 工艺学硕 | E5: — | F5: — | G5: — | H5: — | I5: — | J5: — | K5: — | L5: — | M5: — | N5: — | O5: — | P5: — | Q5: — | R5: — | S5: — | T5: — | U5: — | V5: — | W5: — | X5: — | Y5: 助管
A6: 4 | B6: 2021210601 | C6: 邱皓月 | D6: 工艺学硕 | E6: — | F6: — | G6: — | H6: — | I6: — | J6: — | K6: — | L6: — | M6: — | N6: — | O6: — | P6: — | Q6: — | R6: — | S6: — | T6: — | U6: — | V6: — | W6: — | X6: — | Y6: 助管
A7: 5 | B7: 2021210638 | C7: 马雯妍 | D7: 工艺学硕 | E7: — | F7: — | G7: — | H7: — | I7: — | J7: — | K7: — | L7: — | M7: — | N7: — | O7: — | P7: — | Q7: — | R7: — | S7: — | T7: — | U7: — | V7: — | W7: — | X7: — | Y7: 助管
A8: 6 | B8: 2022210521 | C8: 乔亮 | D8: 工艺学硕 | E8: 97.5134375 | F8: 11.3 | G8: 0 | H8: =E8+F8+G8 -> 108.8134375 | I8: =H8/117.44 -> 0.9265449378 | J8: =100*H8/117.44 -> 92.65449378 | K8: 92.84 | L8: 6.8 | M8: 0 | N8: =K8+L8+M8 -> 99.64 | O8: =N8/99.64 -> 1 | P8: =100*N8/99.64 -> 100 | Q8: 100 | R8: 8 | S8: 0 | T8: =Q8+R8+S8 -> 108 | U8: =T8/116.4 -> 0.9278350515 | V8: =100*T8/116.4 -> 92.78350515 | W8: =J8*0.2+P8*0.7+V8*0.1 -> 97.80924927 | X8: =RANK(W8,$W$8:$W$65,) -> 1
A9: 7 | B9: 2022210519 | C9: 刘英杰 | D9: 工艺学硕 | E9: 97.62181818 | F9: 10 | G9: 0 | H9: =E9+F9 -> 107.62 | I9: 0.9163983 | J9: 91.63983156 | K9: 91.309 | L9: 0 | M9: 0 | N9: =K9+L9 -> 91.31 | O9: 0.9163890 | P9: 91.63890004 | Q9: 100 | R9: 0 | S9: 0 | T9: =Q9+R9 -> 100 | U9: 0.8591065 | V9: 85.91065292 | W9: 91.06626163 | X9: 2
A10: 8 | B10: 2022210583 | C10: 王艳霖 | D10: 工艺学硕 | E10: 97.804375 | F10: 11.634 | G10: 0 | H10: =E10+F10+G10 -> 109.438375 | I10: 0.9318662721 | J10: 93.18662721 | K10: 89.23684211 | L10: 0 | M10: 0 | N10: =K10+L10+M10 -> 89.23684211 | O10: 0.8955925542 | P10: 89.55925542 | Q10: 100 | R10: 8 | S10: 0 | T10: =Q10+R10+S10 -> 108 | U10: 0.9278350515 | V10: 92.78350515 | W10: 90.60715476 | X10: 3
A11: 9 | B11: 2022210592 | C11: 王美杰 | D11: 工艺学硕 | E11: 97.410625 | F11: 10.8 | G11: 0 | H11: =E11+F11+G11 -> 108.210625 | I11: 0.9214119976 | J11: 92.14119976 | K11: 89.46666667 | L11: 0 | M11: 0 | N11: =K11+L11+M11 -> 89.46666667 | O11: 0.8978991034 | P11: 89.78991034 | Q11: 100 | R11: 0 | S11: 0 | T11: =Q11+R11+S11 -> 100 | U11: 0.8591065292 | V11: 85.91065292 | W11: 89.87224249 | X11: 4
A12: 10 | B12: 2022210570 | C12: 黄启广 | D12: 工艺学硕 | E12: 97.384375 | F12: 4 | G12: 0 | H12: =E12+F12+G12 -> 101.384375 | I12: 0.8632865719 | J12: 86.32865719 | K12: 90.83125 | L12: 0 | M12: 0 | N12: =K12+L12+M12 -> 90.83125 | O12: 0.9115942393 | P12: 91.15942393 | Q12: 100 | R12: 0 | S12: 0 | T12: =Q12+R12+S12 -> 100 | U12: 0.8591065292 | V12: 85.91065292 | W12: 89.66839348 | X12: 5
A13: 11 | B13: 2022210580 | C13: 曹欣 | D13: 工艺学硕 | E13: 97.856875 | F13: 9.7 | G13: 0 | H13: =E13+F13+G13 -> 107.556875 | I13: 0.9158453253 | J13: 91.58453253 | K13: 88.9125 | L13: 0 | M13: 0 | N13: =K13+L13+M13 -> 88.9125 | O13: 0.8923374147 | P13: 89.23374147 | Q13: 100 | R13: 2 | S13: 0 | T13: =Q13+R13+S13 -> 102 | U13: 0.8762886598 | V13: 87.62886598 | W13: 89.54341213 | X13: 6
A14: 12 | B14: 2022210628 | C14: 王琛琳 | D14: 工艺学硕 | E14: 97.506875 | F14: 17.32 | G14: 0 | H14: =E14+F14+G14 -> 114.826875 | I14: 0.9777492762 | J14: 97.77492762 | K14: 84.35294118 | L14: 1.012857 | M14: 0 | N14: =K14+L14+M14 -> 85.36579818 | O14: 0.8567422539 | P14: 85.67422539 | Q14: 100 | R14: 7.6667 | S14: 0 | T14: =Q14+R14+S14 -> 107.6667 | U14: 0.9249716495 | V14: 92.49716495 | W14: 88.77665979 | X14: 7
A15: 13 | B15: 2022210621 | C15: 王淙恺 | D15: 工艺学硕 | E15: 96.96424242 | F15: 0 | G15: 0 | H15: =E15+F15 -> 96.96 | I15: 0.8256492 | J15: 82.56492032 | K15: 90.482 | L15: 0 | M15: 0 | N15: =K15+L15 -> 90.48 | O15: 0.9080891 | P15: 90.80891208 | Q15: 100 | R15: 0 | S15: 0 | T15: =Q15+R15 -> 100 | U15: 0.8591065 | V15: 85.91065292 | W15: 88.67028781 | X15: 8
A16: 14 | B16: 2022210582 | C16: 焦琳凯 | D16: 工艺学硕 | E16: 97.139375 | F16: 4 | G16: 0 | H16: =E16+F16+G16 -> 101.139375 | I16: 0.8612004002 | J16: 86.12004002 | K16: 88.82105263 | L16: 0 | M16: 0 | N16: =K16+L16+M16 -> 88.82105263 | O16: 0.891419637 | P16: 89.1419637 | Q16: 100 | R16: 0 | S16: 0 | T16: =Q16+R16+S16 -> 100 | U16: 0.8591065292 | V16: 85.91065292 | W16: 88.21444789 | X16: 9
A17: 15 | B17: 2022210573 | C17: 杨建宇 | D17: 工艺学硕 | E17: 97.02125 | F17: 2 | G17: 0 | H17: =E17+F17+G17 -> 99.02125 | I17: 0.8431645947 | J17: 84.31645947 | K17: 89.0967033 | L17: 0 | M17: 0 | N17: =K17+L17+M17 -> 89.0967033 | O17: 0.8941861029 | P17: 89.41861029 | Q17: 100 | R17: 0 | S17: 0 | T17: =Q17+R17+S17 -> 100 | U17: 0.8591065292 | V17: 85.91065292 | W17: 88.04738439 | X17: 10
A18: 16 | B18: 2022210531 | C18: 李铎 | D18: 工艺学硕 | E18: 97.603125 | F18: 8.4 | G18: 0 | H18: =E18+F18+G18 -> 106.003125 | I18: 0.9026151652 | J18: 90.26151652 | K18: 87.275 | L18: 0 | M18: 0 | N18: =K18+L18+M18 -> 87.275 | O18: 0.8759032517 | P18: 87.59032517 | Q18: 100 | R18: 0 | S18: 0 | T18: =Q18+R18+S18 -> 100 | U18: 0.8591065292 | V18: 85.91065292 | W18: 87.95659622 | X18: 11
A19: 17 | B19: 2022210548 | C19: 李昊明 | D19: 工艺学硕 | E19: 97.62181818 | F19: 4 | G19: 0 | H19: =E19+F19 -> 101.62 | I19: 0.8653084 | J19: 86.53083973 | K19: 86.816 | L19: 0 | M19: 0 | N19: =K19+L19 -> 86.82 | O19: 0.8712967 | P19: 87.1296668 | Q19: 100 | R19: 12 | S19: 0 | T19: =Q19+R19 -> 112 | U19: 0.9621993 | V19: 96.21993127 | W19: 87.91892783 | X19: 12
A20: 18 | B20: 2022210620 | C20: 陈心宇 | D20: 工艺学硕 | E20: 97.1984375 | F20: 3.67 | G20: 0 | H20: =E20+F20+G20 -> 100.8684375 | I20: 0.8588933711 | J20: 85.88933711 | K20: 88.465 | L20: 0 | M20: 0 | N20: =K20+L20+M20 -> 88.465 | O20: 0.8878462465 | P20: 88.78462465 | Q20: 100 | R20: 0 | S20: 0 | T20: =Q20+R20+S20 -> 100 | U20: 0.8591065292 | V20: 85.91065292 | W20: 87.91816997 | X20: 13
A21: 19 | B21: 2022210624 | C21: 李丽莎 | D21: 工艺学硕 | E21: 97.47625 | F21: 6.8 | G21: 0 | H21: =E21+F21+G21 -> 104.27625 | I21: 0.8879108481 | J21: 88.79108481 | K21: 86.75 | L21: 0 | M21: 0 | N21: =K21+L21+M21 -> 86.75 | O21: 0.8706342834 | P21: 87.06342834 | Q21: 100 | R21: 7 | S21: 0 | T21: =Q21+R21+S21 -> 107 | U21: 0.9192439863 | V21: 91.92439863 | W21: 87.89505666 | X21: 14
A22: 20 | B22: 2022210633 | C22: 孙博 | D22: 工艺学硕 | E22: 96.9430303 | F22: 20.5 | G22: 0 | H22: =E22+F22 -> 117.44 | I22: 1.0000258 | J22: 100.0025803 | K22: 83.18 | L22: 0.625 | M22: 0 | N22: =K22+L22 -> 83.81 | O22: 0.8410779 | P22: 84.10778804 | Q22: 100 | R22: 0 | S22: 0 | T22: =Q22+R22 -> 100 | U22: 0.8591065 | V22: 85.91065292 | W22: 87.46703298 | X22: 15
A23: 21 | B23: 2202210639 | C23: 李丹 | D23: 工艺学硕 | E23: 97.0321875 | F23: 5.83 | G23: 0 | H23: =E23+F23+G23 -> 102.8621875 | I23: 0.8758701252 | J23: 87.58701252 | K23: 87.13157895 | L23: 0 | M23: 0 | N23: =K23+L23+M23 -> 87.13157895 | O23: 0.8744638594 | P23: 87.44638594 | Q23: 100 | R23: 0 | S23: 0 | T23: =Q23+R23+S23 -> 100 | U23: 0.8591065292 | V23: 85.91065292 | W23: 87.32093795 | X23: 16
A24: 22 | B24: 2022210509 | C24: 晏燕 | D24: 工艺学硕 | E24: 97.5878125 | F24: 4 | G24: 0 | H24: =E24+F24+G24 -> 101.5878125 | I24: 0.8650188394 | J24: 86.50188394 | K24: 87.18529412 | L24: 0 | M24: 0 | N24: =K24+L24+M24 -> 87.18529412 | O24: 0.8750029518 | P24: 87.50029518 | Q24: 100 | R24: 0 | S24: 0 | T24: =Q24+R24+S24 -> 100 | U24: 0.8591065292 | V24: 85.91065292 | W24: 87.14164871 | X24: 17
A25: 23 | B25: 2022210612 | C25: 王凯宁 | D25: 工艺学硕 | E25: 97.32484848 | F25: 4 | G25: 0 | H25: =E25+F25 -> 101.32 | I25: 0.8627797 | J25: 86.27797044 | K25: 87 | L25: 0 | M25: 0 | N25: =K25+L25 -> 87.00 | O25: 0.8731433 | P25: 87.31433159 | Q25: 100 | R25: 0 | S25: 0 | T25: =Q25+R25 -> 100 | U25: 0.8591065 | V25: 85.91065292 | W25: 86.9666915 | X25: 18
A26: 24 | B26: 2022210523 | C26: 杨乐琪 | D26: 工艺学硕 | E26: 97.6430303 | F26: 7.67 | G26: 0 | H26: =E26+F26 -> 105.31 | I26: 0.8967390 | J26: 89.67390182 | K26: 85.526 | L26: 0 | M26: 0 | N26: =K26+L26 -> 85.53 | O26: 0.8583501 | P26: 85.83500602 | Q26: 100 | R26: 1 | S26: 0 | T26: =Q26+R26 -> 101 | U26: 0.8676976 | V26: 86.76975945 | W26: 86.69626053 | X26: 19
A27: 25 | B27: 2022210571 | C27: 罗湘旭 | D27: 工艺学硕 | E27: 98.3430303 | F27: 6.5 | G27: 0 | H27: =E27+F27 -> 104.8430303 | I27: 0.8927369747 | J27: 89.27369747 | K27: 85.13 | L27: 0 | M27: 0 | N27: =K27+L27 -> 85.13 | O27: 0.8543757527 | P27: 85.43757527 | Q27: 100 | R27: 4 | S27: 0 | T27: =Q27+R27 -> 104 | U27: 0.8934707904 | V27: 89.34707904 | W27: 86.59575009 | X27: 20
A28: 26 | B28: 2022210601 | C28: 冯晓 | D28: 工艺学硕 | E28: 97.91878788 | F28: 9 | G28: 0 | H28: =E28+F28 -> 106.9187879 | I28: 0.9104120221 | J28: 91.04120221 | K28: 83.03 | L28: 0 | M28: 0 | N28: =K28+L28 -> 83.03 | O28: 0.8332998796 | P28: 83.32998796 | Q28: 100 | R28: 16.4 | S28: 0 | T28: =Q28+R28 -> 116.4 | U28: 1 | V28: 100 | W28: 86.53923201 | X28: 21
A29: 27 | B29: 2022210625 | C29: 许诺 | D29: 工艺学硕 | E29: 97.12625 | F29: 4 | G29: 0 | H29: =E29+F29+G29 -> 101.12625 | I29: 0.861088641 | J29: 86.1088641 | K29: 85.64545455 | L29: 0 | M29: 0 | N29: =K29+L29+M29 -> 85.64545455 | O29: 0.8595489216 | P29: 85.95489216 | Q29: 100 | R29: 0 | S29: 0 | T29: =Q29+R29+S29 -> 100 | U29: 0.8591065292 | V29: 85.91065292 | W29: 85.98126262 | X29: 22
A30: 28 | B30: 2022210533 | C30: 吴佳媛 | D30: 工艺学硕 | E30: 97.45212121 | F30: 6.7 | G30: 0 | H30: =E30+F30 -> 104.1521212 | I30: 0.8868538932 | J30: 88.68538932 | K30: 84.571 | L30: 0 | M30: 0 | N30: =K30+L30 -> 84.571 | O30: 0.848765556 | P30: 84.8765556 | Q30: 100 | R30: 2 | S30: 0 | T30: =Q30+R30 -> 102 | U30: 0.8762886598 | V30: 87.62886598 | W30: 85.91355338 | X30: 23
A31: 29 | B31: 2022210547 | C31: 何裕农 | D31: 工艺学硕 | E31: 97.226875 | F31: 0 | G31: 0 | H31: =E31+F31+G31 -> 97.226875 | I31: 0.827885516 | J31: 82.7885516 | K31: 86.38888889 | L31: 0 | M31: 0 | N31: =K31+L31+M31 -> 86.38888889 | O31: 0.8670101253 | P31: 86.70101253 | Q31: 100 | R31: 0 | S31: 0 | T31: =Q31+R31+S31 -> 100 | U31: 0.8591065292 | V31: 85.91065292 | W31: 85.83948439 | X31: 24
A32: 30 | B32: 2022210538 | C32: 王欣悦 | D32: 工艺学硕 | E32: 97.1678125 | F32: 5.8 | G32: 0 | H32: =E32+F32+G32 -> 102.9678125 | I32: 0.8767695206 | J32: 87.67695206 | K32: 84.86842105 | L32: 0 | M32: 0 | N32: =K32+L32+M32 -> 84.86842105 | O32: 0.8517505124 | P32: 85.17505124 | Q32: 100 | R32: 0 | S32: 0 | T32: =Q32+R32+S32 -> 100 | U32: 0.8591065292 | V32: 85.91065292 | W32: 85.74899157 | X32: 25
A33: 31 | B33: 2022210641 | C33: 程小洛 | D33: 工艺学硕 | E33: 98.21575758 | F33: 8.8 | G33: 0 | H33: =E33+F33 -> 107.0157576 | I33: 0.9112377178 | J33: 91.12377178 | K33: 83.22 | L33: 0 | M33: 0 | N33: =K33+L33 -> 83.22 | O33: 0.8352067443 | P33: 83.52067443 | Q33: 100 | R33: 4 | S33: 0 | T33: =Q33+R33 -> 104 | U33: 0.8934707904 | V33: 89.34707904 | W33: 85.62393436 | X33: 26
A34: 32 | B34: 2022210642 | C34: 张欣燕 | D34: 工艺学硕 | E34: 97.0803125 | F34: 2 | G34: 0 | H34: =E34+F34+G34 -> 99.0803125 | I34: 0.8436675111 | J34: 84.36675111 | K34: 85.53684211 | L34: 0 | M34: 0 | N34: =K34+L34+M34 -> 85.53684211 | O34: 0.858458873 | P34: 85.8458873 | Q34: 100 | R34: 0 | S34: 0 | T34: =Q34+R34+S34 -> 100 | U34: 0.8591065292 | V34: 85.91065292 | W34: 85.55653662 | X34: 27
A35: 33 | B35: 2022210640 | C35: 吴雨琪 | D35: 工艺学硕 | E35: 97.13393939 | F35: 2 | G35: 0 | H35: =E35+F35 -> 99.13393939 | I35: 0.8441241433 | J35: 84.41241433 | K35: 84.905 | L35: 0 | M35: 0 | N35: =K35+L35 -> 84.905 | O35: 0.8521176234 | P35: 85.21176234 | Q35: 100 | R35: 0 | S35: 0 | T35: =Q35+R35 -> 100 | U35: 0.8591065292 | V35: 85.91065292 | W35: 85.1217818 | X35: 28
A36: 34 | B36: 2022210630 | C36: 卫可鑫 | D36: 工艺学硕 | E36: 97.15515152 | F36: 19.5 | G36: 0 | H36: 116.6551515 | I36: 0.9933170258 | J36: 99.33170258 | K36: 79.847 | L36: 0.625 | M36: 0 | N36: 80.472 | O36: 0.8076274589 | P36: 80.76274589 | Q36: 100 | R36: 0 | S36: 0 | T36: 100 | U36: 0.8591065292 | V36: 85.91065292 | W36: 84.99132793 | X36: 29
A37: 35 | B37: 2022210609 | C37: 郭际玲 | D37: 工艺学硕 | E37: 96.81575758 | F37: 3.83 | G37: 0 | H37: 100.6457576 | I37: 0.8569972546 | J37: 85.69972546 | K37: 84.03 | L37: 0 | M37: 0 | N37: 84.03 | O37: 0.8433360096 | P37: 84.33360096 | Q37: 100 | R37: 0 | S37: 0 | T37: 100 | U37: 0.8591065292 | V37: 85.91065292 | W37: 84.76453106 | X37: 30
A38: 36 | B38: 2022210602 | C38: 赵文龙 | D38: 工艺学硕 | E38: 97.28242424 | F38: 4 | G38: 0 | H38: 101.2824242 | I38: 0.8624184626 | J38: 86.24184626 | K38: 82.539 | L38: 0 | M38: 0 | N38: 82.539 | O38: 0.8283721397 | P38: 82.83721397 | Q38: 100 | R38: 10 | S38: 0 | T38: 110 | U38: 0.9450171821 | V38: 94.50171821 | W38: 84.68459085 | X38: 31
A39: 37 | B39: 2022210530 | C39: 陈龙 | D39: 工艺学硕 | E39: 97.17636364 | F39: 0 | G39: 0 | H39: 97.17636364 | I39: 0.8274554124 | J39: 82.74554124 | K39: 84.7 | L39: 0 | M39: 0 | N39: 84.7 | O39: 0.8500602168 | P39: 85.00602168 | Q39: 100 | R39: 0 | S39: 0 | T39: 100 | U39: 0.8591065292 | V39: 85.91065292 | W39: 84.64438872 | X39: 32
A40: 38 | B40: 2022210587 | C40: 牛俊敏 | D40: 工艺学硕 | E40: 97.30363636 | F40: 7 | G40: 0 | H40: 104.3036364 | I40: 0.8881440426 | J40: 88.81440426 | K40: 82.77 | L40: 0 | M40: 0 | N40: 82.77 | O40: 0.8306904857 | P40: 83.06904857 | Q40: 100 | R40: 0 | S40: 0 | T40: 100 | U40: 0.8591065292 | V40: 85.91065292 | W40: 84.50228015 | X40: =RANK(W40,$W$8:$W$65,) -> 33
A41: 39 | B41: 2022210510 | C41: 俞非 | D41: 工艺学硕 | E41: 96.64606061 | F41: 0 | G41: 0 | H41: 96.64606061 | I41: 0.8229398894 | J41: 82.29398894 | K41: 84.62 | L41: 0 | M41: 0 | N41: 84.62 | O41: 0.8492573264 | P41: 84.92573264 | Q41: 100 | R41: 0 | S41: 0 | T41: 100 | U41: 0.8591065292 | V41: 85.91065292 | W41: 84.49787593 | X41: 34
A42: 40 | B42: 2022210572 | C42: 王倩 | D42: 工艺学硕 | E42: 97.1109375 | F42: 7.786 | G42: 0 | H42: =E42+F42+G42 -> 104.8969375 | I42: 0.8931959937 | J42: 89.31959937 | K42: 82.55263158 | L42: 0 | M42: 0 | N42: =K42+L42+M42 -> 82.55263158 | O42: 0.828508948 | P42: 82.8508948 | Q42: 100 | R42: 0 | S42: 0 | T42: =Q42+R42+S42 -> 100 | U42: 0.8591065292 | V42: 85.91065292 | W42: 84.45061153 | X42: 35
A43: 41 | B43: 2022210532 | C43: 陶塬 | D43: 工艺学硕 | E43: 97.1371875 | F43: 7.8 | G43: 0 | H43: =E43+F43+G43 -> 104.9371875 | I43: 0.8935387219 | J43: 89.35387219 | K43: 81.435 | L43: 0 | M43: 0 | N43: =K43+L43+M43 -> 81.435 | O43: 0.8172922521 | P43: 81.72922521 | Q43: 100 | R43: 8 | S43: 0 | T43: =Q43+R43+S43 -> 108 | U43: 0.9278350515 | V43: 92.78350515 | W43: 84.3595826 | X43: 36
A44: 42 | B44: 2022210622 | C44: 赵乾煜 | D44: 工艺学硕 | E44: 96.973125 | F44: 2 | G44: 0 | H44: =E44+F44+G44 -> 98.973125 | I44: 0.842754811 | J44: 84.2754811 | K44: 83.75555556 | L44: 0 | M44: 0 | N44: =K44+L44+M44 -> 83.75555556 | O44: 0.8405816495 | P44: 84.05816495 | Q44: 100 | R44: 0 | S44: 0 | T44: =Q44+R44+S44 -> 100 | U44: 0.8591065292 | V44: 85.91065292 | W44: 84.28687698 | X44: 37
A45: 43 | B45: 2022210593 | C45: 王婧 | D45: 工艺学硕 | E45: 96.98545455 | F45: 3.5 | G45: 0 | H45: =E45+F45 -> 100.4854545 | I45: 0.8556322764 | J45: 85.56322764 | K45: 83.001 | L45: 0 | M45: 0 | N45: =K45+L45 -> 83.001 | O45: 0.8330088318 | P45: 83.30088318 | Q45: 100 | R45: 3 | S45: 0 | T45: =Q45+R45 -> 103 | U45: 0.8848797251 | V45: 88.48797251 | W45: 84.27206101 | X45: 38
A46: 44 | B46: 2022210591 | C46: 戈涵娜 | D46: 工艺学硕 | E46: 96.8046875 | F46: 2 | G46: 0 | H46: =E46+F46+G46 -> 98.8046875 | I46: 0.8413205679 | J46: 84.13205679 | K46: 83.625 | L46: 0 | M46: 0 | N46: =K46+L46+M46 -> 83.625 | O46: 0.839271377 | P46: 83.9271377 | Q46: 100 | R46: 0 | S46: 0 | T46: =Q46+R46+S46 -> 100 | U46: 0.8591065292 | V46: 85.91065292 | W46: 84.16647304 | X46: 39
A47: 45 | B47: 2022210536 | C47: 韩琳琳 | D47: 工艺学硕 | E47: 97.15515152 | F47: 2 | G47: 0 | H47: =E47+F47 -> 99.15515152 | I47: 0.8443047643 | J47: 84.43047643 | K47: 83.518 | L47: 0 | M47: 0 | N47: =K47+L47 -> 83.518 | O47: 0.838197511 | P47: 83.8197511 | Q47: 100 | R47: 0 | S47: 0 | T47: =Q47+R47 -> 100 | U47: 0.8591065292 | V47: 85.91065292 | W47: 84.15098635 | X47: 40
A48: 46 | B48: 2022210550 | C48: 张纯 | D48: 工艺学硕 | E48: 97.0146875 | F48: 0 | G48: 0 | H48: =E48+F48+G48 -> 97.0146875 | I48: 0.8260787423 | J48: 82.60787423 | K48: 84 | L48: 0 | M48: 0 | N48: =K48+L48+M48 -> 84 | O48: 0.8430349257 | P48: 84.30349257 | Q48: 100 | R48: 0 | S48: 0 | T48: =Q48+R48+S48 -> 100 | U48: 0.8591065292 | V48: 85.91065292 | W48: 84.12508494 | X48: 41
A49: 47 | B49: 2022210537 | C49: 郝保康 | D49: 工艺学硕 | E49: 97.183125 | F49: 0 | G49: 0 | H49: =E49+F49+G49 -> 97.183125 | I49: 0.8275129854 | J49: 82.75129854 | K49: 83.72631579 | L49: 0 | M49: 0 | N49: =K49+L49+M49 -> 83.72631579 | O49: 0.8402881954 | P49: 84.02881954 | Q49: 100 | R49: 0 | S49: 0 | T49: =Q49+R49+S49 -> 100 | U49: 0.8591065292 | V49: 85.91065292 | W49: 83.96149868 | X49: 42
A50: 48 | B50: 2022210549 | C50: 刘佳豪 | D50: 工艺学硕 | E50: 97.4653125 | F50: 0 | G50: 0 | H50: =E50+F50+G50 -> 97.4653125 | I50: 0.8299158081 | J50: 82.99158081 | K50: 83.09444444 | L50: 0 | M50: 0 | N50: =K50+L50+M50 -> 83.09444444 | O50: 0.8339466524 | P50: 83.39466524 | Q50: 100 | R50: 0 | S50: 0 | T50: =Q50+R50+S50 -> 100 | U50: 0.8591065292 | V50: 85.91065292 | W50: 83.56564712 | X50: 43
A51: 49 | B51: 2022210599 | C51: 邓百炼 | D51: 工艺学硕 | E51: 97.139375 | F51: 0 | G51: 0 | H51: =E51+F51+G51 -> 97.139375 | I51: 0.8271404547 | J51: 82.71404547 | K51: 82.5 | L51: 0 | M51: 0 | N51: =K51+L51+M51 -> 82.5 | O51: 0.8279807306 | P51: 82.79807306 | Q51: 100 | R51: 0 | S51: 0 | T51: =Q51+R51+S51 -> 100 | U51: 0.8591065292 | V51: 85.91065292 | W51: 83.09252553 | X51: 44
A52: 50 | B52: 2022210578 | C52: 马壮 | D52: 工艺学硕 | E52: 97.10875 | F52: 0 | G52: 0 | H52: =E52+F52+G52 -> 97.10875 | I52: 0.8268796832 | J52: 82.68796832 | K52: 82.42375 | L52: 0 | M52: 0 | N52: =K52+L52+M52 -> 82.42375 | O52: 0.8272154757 | P52: 82.72154757 | Q52: 100 | R52: 0 | S52: 0 | T52: =Q52+R52+S52 -> 100 | U52: 0.8591065292 | V52: 85.91065292 | W52: 83.03374226 | X52: 45
A53: 51 | B53: 2022210511 | C53: 张润清 | D53: 工艺学硕 | E53: 96.66727273 | F53: 0 | G53: 0 | H53: =E53+F53 -> 96.66727273 | I53: 0.8231205103 | J53: 82.31205103 | K53: 82.385 | L53: 0 | M53: 0 | N53: =K53+L53 -> 82.385 | O53: 0.8268265757 | P53: 82.68265757 | Q53: 100 | R53: 0 | S53: 0 | T53: =Q53+R53 -> 100 | U53: 0.8591065292 | V53: 85.91065292 | W53: 82.93133579 | X53: 46
A54: 52 | B54: 2022210584 | C54: 王玉茹 | D54: 工艺学硕 | E54: 97.034375 | F54: 0.5 | G54: 0 | H54: =E54+F54+G54 -> 97.534375 | I54: 0.8305038743 | J54: 83.05038743 | K54: 82.13157895 | L54: 0 | M54: 0 | N54: =K54+L54+M54 -> 82.13157895 | O54: 0.824283209 | P54: 82.4283209 | Q54: 100 | R54: 0 | S54: 0 | T54: =Q54+R54+S54 -> 100 | U54: 0.8591065292 | V54: 85.91065292 | W54: 82.90096741 | X54: 47
A55: 53 | B55: 2022210588 | C55: 任俊颖 | D55: 工艺学硕 | E55: 97.09151515 | F55: 4 | G55: 0 | H55: =E55+F55 -> 101.0915152 | I55: 0.8607928742 | J55: 86.07928742 | K55: 80.731 | L55: 0 | M55: 0 | N55: =K55+L55 -> 80.731 | O55: 0.8102268165 | P55: 81.02268165 | Q55: 100 | R55: 0 | S55: 0 | T55: =Q55+R55 -> 100 | U55: 0.8591065292 | V55: 85.91065292 | W55: 82.52279993 | X55: 48
A56: 54 | B56: 2022210647 | C56: 闫思源 | D56: 工艺学硕 | E56: 96.75212121 | F56: 2.83 | G56: 0 | H56: =E56+F56 -> 99.58212121 | I56: 0.8479404054 | J56: 84.79404054 | K56: 80.07 | L56: 0 | M56: 0 | N56: =K56+L56 -> 80.07 | O56: 0.8035929346 | P56: 80.35929346 | Q56: 100 | R56: 0 | S56: 0 | T56: =Q56+R56 -> 100 | U56: 0.8591065292 | V56: 85.91065292 | W56: 81.80137882 | X56: 49
A57: 55 | B57: 2022210581 | C57: 耿晓瑞 | D57: 工艺学硕 | E57: 96.56121212 | F57: 2 | G57: 0 | H57: =E57+F57 -> 98.56121212 | I57: 0.8392473784 | J57: 83.92473784 | K57: 80.316 | L57: 0 | M57: 0 | N57: =K57+L57 -> 80.316 | O57: 0.8060618226 | P57: 80.60618226 | Q57: 100 | R57: 0 | S57: 0 | T57: =Q57+R57 -> 100 | U57: 0.8591065292 | V57: 85.91065292 | W57: 81.80034044 | X57: 50
A58: 56 | B58: 2022210579 | C58: 张祺 | D58: 工艺学硕 | E58: 97.0671875 | F58: 4.4 | G58: 0 | H58: =E58+F58+G58 -> 101.4671875 | I58: 0.8639917192 | J58: 86.39917192 | K58: 79.525 | L58: 0 | M58: 0 | N58: =K58+L58+M58 -> 79.525 | O58: 0.7981232437 | P58: 79.81232437 | Q58: 100 | R58: 0 | S58: 0 | T58: =Q58+R58+S58 -> 100 | U58: 0.8591065292 | V58: 85.91065292 | W58: 81.73952673 | X58: 51
A59: 57 | B59: 2022210526 | C59: 霍德玺 | D59: 工艺学硕 | E59: 97.135 | F59: 4 | G59: 0 | H59: =E59+F59 -> 101.135 | I59: 0.8611631471 | J59: 86.11631471 | K59: 79.469 | L59: 0 | M59: 0 | N59: =K59+L59 -> 79.469 | O59: 0.7975612204 | P59: 79.75612204 | Q59: 100 | R59: 0 | S59: 0 | T59: =Q59+R59 -> 100 | U59: 0.8591065292 | V59: 85.91065292 | W59: 81.64361366 | X59: 52
A60: 58 | B60: 2022210522 | C60: 宋新园 | D60: 工艺学硕 | E60: 97.81272727 | F60: 8.8 | G60: 0 | H60: =E60+F60 -> 106.6127273 | I60: 0.9078059202 | J60: 90.78059202 | K60: 77.147 | L60: 0 | M60: 0 | N60: =K60+L60 -> 77.147 | O60: 0.7742573264 | P60: 77.42573264 | Q60: 100 | R60: 4.67 | S60: 0 | T60: =Q60+R60 -> 104.67 | U60: 0.8992268041 | V60: 89.92268041 | W60: 81.34639929 | X60: 53
A61: 59 | B61: 2022210613 | C61: 薛西楠 | D61: 工艺学硕 | E61: 96.87939394 | F61: 2 | G61: 0 | H61: =E61+F61 -> 98.87939394 | I61: 0.8419566923 | J61: 84.19566923 | K61: 79.203 | L61: 0 | M61: 0 | N61: =K61+L61 -> 79.203 | O61: 0.7948916098 | P61: 79.48916098 | Q61: 100 | R61: 0 | S61: 0 | T61: =Q61+R61 -> 100 | U61: 0.8591065292 | V61: 85.91065292 | W61: 81.07261182 | X61: 54
A62: 60 | B62: 2022210610 | C62: 虢江波 | D62: 工艺学硕 | E62: 97.065 | F62: 0 | G62: 0 | H62: =E62+F62+G62 -> 97.065 | I62: 0.8265071526 | J62: 82.65071526 | K62: 78.29583333 | L62: 0 | M62: 0 | N62: =K62+L62+M62 -> 78.29583333 | O62: 0.7857871671 | P62: 78.57871671 | Q62: 100 | R62: 8 | S62: 0 | T62: =Q62+R62+S62 -> 108 | U62: 0.9278350515 | V62: 92.78350515 | W62: 80.81359527 | X62: 55
A63: 61 | B63: 2022210629 | C63: 王键烽 | D63: 工艺学硕 | E63: 97.17636364 | F63: 12.5 | G63: 0 | H63: =E63+F63 -> 109.6763636 | I63: 0.9338927421 | J63: 93.38927421 | K63: 73.11 | L63: 0 | M63: 0 | N63: =K63+L63 -> 73.11 | O63: 0.7337414693 | P63: 73.37414693 | Q63: 100 | R63: 10 | S63: 0 | T63: =Q63+R63 -> 110 | U63: 0.9450171821 | V63: 94.50171821 | W63: 79.48992951 | X63: 56
A64: 62 | B64: 2022210645 | C64: 高清逸 | D64: 工艺学硕 | E64: 97.24875 | F64: 2 | G64: 0 | H64: =E64+F64+G64 -> 99.24875 | I64: 0.8451017541 | J64: 84.51017541 | K64: 76.055 | L64: 0 | M64: 0 | N64: =K64+L64+M64 -> 76.055 | O64: 0.7632978723 | P64: 76.32978723 | Q64: 100 | R64: 0 | S64: 0 | T64: =Q64+R64+S64 -> 100 | U64: 0.8591065292 | V64: 85.91065292 | W64: 78.92395144 | X64: 57
A65: 63 | B65: 2022210600 | C65: 路兵 | D65: 工艺学硕 | E65: 97.11272727 | F65: 0.5 | G65: 0 | H65: =E65+F65 -> 97.61272727 | I65: 0.8311710429 | J65: 83.11710429 | K65: 76.18 | L65: 0 | M65: 0 | N65: =K65+L65 -> 76.18 | O65: 0.7645523886 | P65: 76.45523886 | Q65: 100 | R65: 0 | S65: 0 | T65: =Q65+R65 -> 100 | U65: 0.8591065292 | V65: 85.91065292 | W65: 78.73315335 | X65: 58

Sheet 工艺专硕
A1: 序号 | B1: 学号 | C1: 姓名 | D1: 方向 | E1: 德育成绩 | K1: 智育成绩 | Q1: 文体成绩 | W1: 总分 | X1: 排名
E2: 基础分 | F2: 奖励分 | G2: 惩罚分 | H2: 个人德育总分 | I2: 个人德育总分/基准 | J2: 德育总成绩 | K2: 基础分 | L2: 奖励分 | M2: 惩罚分 | N2: 个人智育总分 | O2: 个人智育总分/基准 | P2: 智育总成绩 | Q2: 基础分 | R2: 奖励分 | S2: 惩罚分 | T2: 个人文体总分 | U2: 个人文体总分/基准 | V2: 文体总成绩
A3: 1 | B3: 2022215374 | C3: 郭庆 | D3: 工艺专硕 | E3: 96.3416667 | F3: 17 | G3: 0 | H3: 113.5916667 | I3: =J3/100 -> 1.0000000 | J3: 100.0000000 | K3: 86.9789500 | L3: 3.8034188 | M3: 0 | N3: 90.7823688 | O3: =P3/100 -> 0.9999997 | P3: 99.99996564 | Q3: 100 | R3: 0.5000000 | S3: 0 | T3: 100.5 | U3: =V3/100 -> 0.9108764 | V3: 91.0876408 | W3: 99.1087400 | X3: 1
A4: 2 | B4: 2022215385 | C4: 赵凡 | D4: 工艺专硕 | E4: 96.5166667 | F4: 9 | G4: 0 | H4: 105.2426667 | I4: 0.9264999 | J4: 92.6499890 | K4: 90.5176500 | L4: 0.0000000 | M4: 0 | N4: 90.51765 | O4: 0.9970837 | P4: 99.70836858 | Q4: 100 | R4: 7.5667000 | S4: 0 | T4: 107.5667 | U4: 0.9749251 | V4: 97.4925068 | W4: 98.0751065 | X4: 2
A5: 3 | B5: 2022215376 | C5: 丁怡 | D5: 工艺专硕 | E5: 96.53611111 | F5: 13.666 | G5: 0 | H5: 110.2021111 | I5: 0.9701602 | J5: 97.01601741 | K5: 86.40625 | L5: 1.357142857 | M5: 0 | N5: 87.76339286 | O5: 0.9667446 | P5: 96.67445767 | Q5: 100 | R5: 8.6667 | S5: 0 | T5: 108.6667 | U5: 0.9848949 | V5: 98.48948595 | W5: 96.92427244 | X5: 3
A6: 4 | B6: 2022215371 | C6: 曹宇琦 | D6: 工艺专硕 | E6: 96.84 | F6: 6 | G6: 0 | H6: 102.84 | I6: 0.9053481 | J6: 90.53481036 | K6: 89.755 | L6: 0 | M6: 0 | N6: 89.755 | O6: 0.9886828 | P6: 98.86828284 | Q6: 100 | R6: 0.5 | S6: 0 | T6: 100.5 | U6: 0.9108764 | V6: 91.08764081 | W6: 96.42352414 | X6: 4
A7: 5 | B7: 2022215329 | C7: 张大庆 | D7: 工艺专硕 | E7: 96.62 | F7: 7.766 | G7: 0 | H7: 104.386 | I7: 0.9189583 | J7: 91.89582569 | K7: 88.26111 | L7: 0 | M7: 0 | N7: 88.26111 | O7: 0.9722271 | P7: 97.22271057 | Q7: 100 | R7: 10 | S7: 0 | T7: 110 | U7: 0.9969792 | V7: 99.69791532 | W7: 96.40485407 | X7: 5
A8: 6 | B8: 2022215342 | C8: 王佳冉 | D8: 工艺专硕 | E8: 97.08055556 | F8: 8 | G8: 0 | H8: 105.0805556 | I8: 0.9250728 | J8: 92.50727508 | K8: 87.875 | L8: 0 | M8: 0 | N8: 87.875 | O8: 0.9679740 | P8: 96.79739685 | Q8: 100 | R8: 9 | S8: 0 | T8: 109 | U8: 0.9879157 | V8: 98.79157063 | W8: 96.13878988 | X8: 6
A9: 7 | B9: 2022215373 | C9: 安俊蒲 | D9: 工艺专硕 | E9: 96.16666667 | F9: 14.25 | G9: 0 | H9: 110.4166667 | I9: 0.9720490 | J9: 97.20490059 | K9: 87.09875 | L9: 0.1428571429 | M9: 0 | N9: 87.24160714 | O9: 0.9609969 | P9: 96.09969239 | Q9: 100 | R9: 0.5 | S9: 0 | T9: 100.5 | U9: 0.9108764 | V9: 91.08764081 | W9: 95.81952887 | X9: 7
A10: 8 | B10: 2022215365 | C10: 高成双 | D10: 工艺专硕 | E10: 96.24444444 | F10: 8 | G10: 0 | H10: 104.2444444 | I10: 0.9177121 | J10: 91.77120779 | K10: 87.60556 | L10: 0 | M10: 0 | N10: 87.60556 | O10: 0.9650060 | P10: 96.50059924 | Q10: 100 | R10: 8.1 | S10: 0 | T10: 108.1 | U10: 0.9797586 | V10: 97.97586042 | W10: 95.70224706 | X10: 8
A11: 9 | B11: 2022215370 | C11: 王亚琦 | D11: 工艺专硕 | E11: 96.94444444 | F11: 4.8 | G11: 0 | H11: 101.7444444 | I11: 0.8957034 | J11: 89.57034211 | K11: 87.18333 | L11: 0 | M11: 0 | N11: 87.18333 | O11: 0.9603550 | P11: 96.03549807 | Q11: 100 | R11: 10.3333 | S11: 0 | T11: 110.3333 | U11: 1.0000000 | V11: 100 | W11: 95.13891707 | X11: 9
A12: 10 | B12: 2022215352 | C12: 陈瑶 | D12: 工艺专硕 | E12: 96.10833333 | F12: 0 | G12: 0 | H12: 96.10833333 | I12: 0.8460861 | J12: 84.60861272 | K12: 89.42778 | L12: 0 | M12: 0 | N12: 89.42778 | O12: 0.9850784 | P12: 98.50783852 | Q12: 100 | R12: 0 | S12: 0 | T12: 100 | U12: 0.9063447 | V12: 90.63446847 | W12: 94.94065636 | X12: 10
A13: 11 | B13: 2022215338 | C13: 马威 | D13: 工艺专硕 | E13: 95.95277778 | F13: 2 | G13: 0 | H13: 97.95277778 | I13: 0.8623236 | J13: 86.23236251 | K13: 87.8375 | L13: 0 | M13: 0 | N13: 87.8375 | O13: 0.9675609 | P13: 96.75608929 | Q13: 100 | R13: 0.5 | S13: 0 | T13: 100.5 | U13: 0.9108764 | V13: 91.08764081 | W13: 94.08449908 | X13: 11
A14: 12 | B14: 2022215322 | C14: 朱云霄 | D14: 工艺专硕 | E14: 96.03055556 | F14: 3.5 | G14: 0 | H14: 99.53055556 | I14: 0.8762135 | J14: 87.62135329 | K14: 85.71912 | L14: 1.18 | M14: 0 | N14: 86.89912 | O14: 0.9572243 | P14: 95.72243078 | Q14: 100 | R14: 0.5 | S14: 0 | T14: 100.5 | U14: 0.9108764 | V14: 91.08764081 | W14: 93.63873628 | X14: 12
A15: 13 | B15: 2022215321 | C15: 师人博 | D15: 工艺专硕 | E15: 95.95277778 | F15: 0 | G15: 0 | H15: 95.95277778 | I15: 0.8447167 | J15: 84.47166997 | K15: 87.18676 | L15: 0 | M15: 0 | N15: 87.18676 | O15: 0.9603928 | P15: 96.03927634 | Q15: 100 | R15: 0 | S15: 0 | T15: 100 | U15: 0.9063447 | V15: 90.63446847 | W15: 93.18527428 | X15: 13
A16: 14 | B16: 2022215328 | C16: 董金业 | D16: 工艺专硕 | E16: 96.10833333 | F16: 4.8 | G16: 0 | H16: 100.9083333 | I16: 0.8883427 | J16: 88.83427481 | K16: 85.70222 | L16: 0 | M16: 0 | N16: 85.70222 | O16: 0.9440400 | P16: 94.40400342 | Q16: 100 | R16: 0.5 | S16: 0 | T16: 100.5 | U16: 0.9108764 | V16: 91.08764081 | W16: 92.95842144 | X16: 14
A17: 15 | B17: 2022215317 | C17: 张楠 | D17: 工艺专硕 | E17: 96.24444444 | F17: 4.8 | G17: 0 | H17: 101.0444444 | I17: 0.9601091 | J17: 96.01091235 | K17: 84.56302 | L17: 0.4 | M17: 0 | N17: 84.96302 | O17: 0.9358975 | P17: 93.58974867 | Q17: 100 | R17: 2 | S17: 0 | T17: 102 | U17: 0.9244716 | V17: 92.44715784 | W17: 93.95972232 | X17: 16
A18: 16 | B18: 2022215381 | C18: 王兵 | D18: 工艺专硕 | E18: 96.06944444 | F18: 3 | G18: 0 | H18: 99.06944444 | I18: 0.8721542 | J18: 87.21541584 | K18: 85.625 | L18: 0 | M18: 0 | N18: 85.625 | O18: 0.9431894 | P18: 94.31894288 | Q18: 100 | R18: 0 | S18: 0 | T18: 100 | U18: 0.9063447 | V18: 90.63446847 | W18: 92.52979003 | X18: 15
A19: 17 | B19: 2022215343 | C19: 杨金兴 | D19: 工艺专硕 | E19: 96.49722222 | F19: 0 | G19: 0 | H19: 96.49722222 | I19: 0.8495100 | J19: 84.951 | K19: 84.7625 | L19: 0 | M19: 0 | N19: 84.7625 | O19: 0.9336887 | P19: 93.36886886 | Q19: 100 | R19: 8.1 | S19: 0 | T19: 108.1 | U19: 0.9797586 | V19: 97.97586042 | W19: 92.14599424 | X19: 17
A20: 18 | B20: 2022215375 | C20: 陈凯毅 | D20: 工艺专硕 | E20: 95.77777778 | F20: 15.25 | G20: 0 | H20: 111.0277778 | I20: 0.9774289 | J20: 97.74288998 | K20: 81.83125 | L20: 0.3571428571 | M20: 0 | N20: 82.18839286 | O20: 0.9053340 | P20: 90.53339949 | Q20: 100 | R20: 1 | S20: 0 | T20: 101 | U20: 0.9154081 | V20: 91.54081315 | W20: 92.07603895 | X20: 18
A21: 19 | B21: 2022215339 | C21: 于星渤 | D21: 工艺专硕 | E21: 96.03055556 | F21: 4 | G21: 0 | H21: 100.0305556 | I21: 0.8806153 | J21: 88.06152642 | K21: 84.51176 | L21: 0 | M21: 0 | N21: 84.51176 | O21: 0.9309267 | P21: 93.09266994 | Q21: 100 | R21: 0.5 | S21: 0 | T21: 100.5 | U21: 0.9108764 | V21: 91.08764081 | W21: 91.88593833 | X21: 19
A22: 20 | B22: 2022215366 | C22: 吴达 | D22: 工艺专硕 | E22: 96.03055556 | F22: 3 | G22: 0 | H22: 99.03055556 | I22: 0.8718118 | J22: 87.18118015 | K22: 84.48889 | L22: 0 | M22: 0 | N22: 84.48889 | O22: 0.9306748 | P22: 93.06747784 | Q22: 100 | R22: 1 | S22: 0 | T22: 101 | U22: 0.9154081 | V22: 91.54081315 | W22: 91.73755183 | X22: 20
A23: 21 | B23: 202215361 | C23: 范崇翔 | D23: 工艺专硕 | E23: 95.91388889 | F23: 0 | G23: 0 | H23: 95.91388889 | I23: 0.8443743 | J23: 84.43743428 | K23: 84.93971 | L23: 0 | M23: 0 | N23: 84.93971 | O23: 0.9356407 | P23: 93.56407189 | Q23: 100 | R23: 0 | S23: 0 | T23: 100 | U23: 0.9063447 | V23: 90.63446847 | W23: 91.44578403 | X23: 21
A24: 22 | B24: 2022215349 | C24: 王延新 | D24: 工艺专硕 | E24: 95.99166667 | F24: 4 | G24: 0 | H24: 99.99166667 | I24: 0.8802729 | J24: 88.02729073 | K24: 83.66875 | L24: 0 | M24: 0 | N24: 83.66875 | O24: 0.9216406 | P24: 92.16406484 | Q24: 100 | R24: 0.5 | S24: 0 | T24: 100.5 | U24: 0.9108764 | V24: 91.08764081 | W24: 91.22906762 | X24: 22
A25: 23 | B25: 2022215353 | C25: 刘雨轩 | D25: 工艺专硕 | E25: 95.13611111 | F25: 0 | G25: 0 | H25: 95.13611111 | I25: 0.8375272 | J25: 83.75272051 | K25: 84.825 | L25: 0 | M25: 0 | N25: 84.825 | O25: 0.9343771 | P25: 93.4377148 | Q25: 100 | R25: 0 | S25: 0 | T25: 100 | U25: 0.9063447 | V25: 90.63446847 | W25: 91.22039131 | X25: 23
A26: 24 | B26: 2022215312 | C26: 闫妍 | D26: 工艺专硕 | E26: 96.18611111 | F26: 0 | G26: 0 | H26: 96.18611111 | I26: 0.8467708 | J26: 84.6770841 | K26: 84.13158 | L26: 0 | M26: 0 | N26: 84.13158 | O26: 0.9267389 | P26: 92.67388833 | Q26: 100 | R26: 0.5 | S26: 0 | T26: 100.5 | U26: 0.9108764 | V26: 91.08764081 | W26: 90.91590273 | X26: 24
A27: 25 | B27: 2022215360 | C27: 陈琪 | D27: 工艺专硕 | E27: 95.99166667 | F27: 0 | G27: 0 | H27: 95.99166667 | I27: 0.8450591 | J27: 84.50590566 | K27: 83.94118 | L27: 0 | M27: 0 | N27: 83.94118 | O27: 0.9246416 | P27: 92.46415605 | Q27: 100 | R27: 0.5 | S27: 0 | T27: 100.5 | U27: 0.9108764 | V27: 91.08764081 | W27: 90.73485445 | X27: 25
A28: 26 | B28: 2022215369 | C28: 张世豪 | D28: 工艺专硕 | E28: 95.83611111 | F28: 4 | G28: 0 | H28: 99.83611111 | I28: 0.8789035 | J28: 87.89034798 | K28: 82.77647 | L28: 0 | M28: 0 | N28: 82.77647 | O28: 0.9118119 | P28: 91.1811871 | Q28: 100 | R28: 0.5 | S28: 0 | T28: 100.5 | U28: 0.9108764 | V28: 91.08764081 | W28: 90.51366465 | X28: 26
A29: 27 | B29: 2022215345 | C29: 张希峰 | D29: 工艺专硕 | E29: 95.75833333 | F29: 0 | G29: 0 | H29: 95.75833333 | I29: 0.8430049 | J29: 84.30049153 | K29: 83.24211 | L29: 0 | M29: 0 | N29: 83.24211 | O29: 0.9169411 | P29: 91.69410591 | Q29: 100 | R29: 0 | S29: 0 | T29: 100 | U29: 0.9063447 | V29: 90.63446847 | W29: 90.10941929 | X29: 27
A30: 28 | B30: 2022215307 | C30: 宋光耀 | D30: 工艺专硕 | E30: 95.82 | F30: 3.73 | G30: 0 | H30: 99.55 | I30: 0.8763847 | J30: 87.63847113 | K30: 81.16051 | L30: 0 | M30: 0 | N30: 81.16051 | O30: 0.8940115 | P30: 89.40115044 | Q30: 100 | R30: 8.1 | S30: 0 | T30: 108.1 | U30: 0.9797586 | V30: 97.97586042 | W30: 89.90608558 | X30: 28
A31: 29 | B31: 2022215348 | C31: 任爽 | D31: 工艺专硕 | E31: 95.97222222 | F31: 4.4 | G31: 0 | H31: 100.3722222 | I31: 0.8836231 | J31: 88.3623114 | K31: 81.76125 | L31: 0 | M31: 0 | N31: 81.76125 | O31: 0.9006289 | P31: 90.06288664 | Q31: 100 | R31: 0.5 | S31: 0 | T31: 100.5 | U31: 0.9108764 | V31: 91.08764081 | W31: 89.82524701 | X31: 29
A32: 30 | B32: 2022215318 | C32: 陈文倩 | D32: 工艺专硕 | E32: 96.49722222 | F32: 0 | G32: 0 | H32: 96.49722222 | I32: 0.8495097 | J32: 84.9509696 | K32: 82.03949 | L32: 0 | M32: 0 | N32: 82.03949 | O32: 0.9036938 | P32: 90.36937776 | Q32: 100 | R32: 0.5 | S32: 0 | T32: 100.5 | U32: 0.9108764 | V32: 91.08764081 | W32: 89.35752244 | X32: 30
A33: 31 | B33: 2022215380 | C33: 吴熙 | D33: 工艺专硕 | E33: 95.73888889 | F33: 0 | G33: 0 | H33: 95.73888889 | I33: 0.8428337 | J33: 84.28337368 | K33: 81.88889 | L33: 0 | M33: 0 | N33: 81.88889 | O33: 0.9020349 | P33: 90.20348658 | Q33: 100 | R33: 0 | S33: 0 | T33: 100 | U33: 0.9063447 | V33: 90.63446847 | W33: 89.06256219 | X33: 31
A34: 32 | B34: 2022215384 | C34: 王俊帅 | D34: 工艺专硕 | E34: 97.12 | F34: 10 | G34: 0 | H34: 107.12 | I34: 0.9430269 | J34: 94.30269239 | K34: 78.61118 | L34: 0 | M34: 0 | N34: 78.61118 | O34: 0.8659297 | P34: 86.59297397 | Q34: 100 | R34: 2 | S34: 0 | T34: 102 | U34: 0.9244716 | V34: 92.44715784 | W34: 88.72033604 | X34: 32
A35: 33 | B35: 2022215311 | C35: 张峰铭 | D35: 工艺专硕 | E35: 96.01111111 | F35: 0 | G35: 0 | H35: 96.01111111 | I35: 0.8452302 | J35: 84.5230235 | K35: 78.985 | L35: 0 | M35: 0 | N35: 78.985 | O35: 0.8700475 | P35: 87.00474982 | Q35: 100 | R35: 0.5 | S35: 0 | T35: 100.5 | U35: 0.9108764 | V35: 91.08764081 | W35: 86.91669365 | X35: 33
A36: 34 | B36: 2022215344 | C36: 樊嘉琛 | D36: 工艺专硕 | E36: 96.06944444 | F36: 0 | G36: 0 | H36: 96.06944444 | I36: 0.8457438 | J36: 84.57437703 | K36: 78.70526 | L36: 0 | M36: 0 | N36: 78.70526 | O36: 0.8669661 | P36: 86.69660639 | Q36: 100 | R36: 0.5 | S36: 0 | T36: 100.5 | U36: 0.9108764 | V36: 91.08764081 | W36: 86.71126396 | X36: 34
A37: 35 | B37: 2022215372 | C37: 封亚楠 | D37: 工艺专硕 | E37: 96.16666667 | F37: 0 | G37: 0 | H37: 96.16666667 | I37: 0.8465997 | J37: 84.65996625 | K37: 76.73 | L37: 0 | M37: 0 | N37: 76.73 | O37: 0.8452079 | P37: 84.52078817 | Q37: 100 | R37: 8.1667 | S37: 0 | T37: 108.1667 | U37: 0.9803631 | V37: 98.03631361 | W37: 85.90017633 | X37: 35
A38: 36 | B38: 2022215306 | C38: 马德利 | D38: 工艺专硕 | E38: 95.50555556 | F38: 0 | G38: 0 | H38: 95.50555556 | I38: 0.8407796 | J38: 84.07795955 | K38: 77.26975 | L38: 0 | M38: 0 | N38: 77.26975 | O38: 0.8511534 | P38: 85.11534174 | Q38: 100 | R38: 0.5 | S38: 0 | T38: 100.5 | U38: 0.9108764 | V38: 91.08764081 | W38: 85.50509521 | X38: 36

Sheet 工程学硕
A1: 序号 | B1: 学号 | C1: 姓名 | D1: 方向 | E1: 德育成绩 | K1: 智育成绩 | Q1: 文体成绩 | W1: 总分 | X1: 排名
E2: 基础分 | F2: 奖励分 | G2: 惩罚分 | H2: 个人德育总分 | I2: 个人德育总分/基准 | J2: 德育总成绩 | K2: 基础分 | L2: 奖励分 | M2: 惩罚分 | N2: 个人智育总分 | O2: 个人智育总分/基准 | P2: 智育总成绩 | Q2: 基础分 | R2: 奖励分 | S2: 惩罚分 | T2: 个人文体总分 | U2: 个人文体总分/基准 | V2: 文体总成绩
A3: 1 | B3: 2021210596 | C3: 李昕阳 | D3: 工程学硕 | E3: — | F3: — | G3: — | H3: — | I3: — | J3: — | K3: — | L3: — | M3: — | N3: — | O3: — | P3: — | Q3: — | R3: — | S3: — | T3: — | U3: — | V3: — | W3: — | X3: — | Y3: 助管
A4: 2 | B4: 2021210597 | C4: 王艺慧 | D4: 工程学硕 | E4: — | F4: — | G4: — | H4: — | I4: — | J4: — | K4: — | L4: — | M4: — | N4: — | O4: — | P4: — | Q4: — | R4: — | S4: — | T4: — | U4: — | V4: — | W4: — | X4: — | Y4: 助管
A5: 3 | B5: 2021210582 | C5: 李湍 | D5: 工程学硕 | E5: — | F5: — | G5: — | H5: — | I5: — | J5: — | K5: — | L5: — | M5: — | N5: — | O5: — | P5: — | Q5: — | R5: — | S5: — | T5: — | U5: — | V5: — | W5: — | X5: — | Y5: 助管
A6: 4 | B6: 2022210607 | C6: 林海 | D6: 工程学硕 | E6: — | F6: — | G6: — | H6: — | I6: — | J6: — | K6: — | L6: — | M6: — | N6: — | O6: — | P6: — | Q6: — | R6: — | S6: — | T6: — | U6: — | V6: — | W6: — | X6: — | Y6: 助管
A7: 5 | B7: 2022210597 | C7: 刘宇 | D7: 工程学硕 | E7: — | F7: — | G7: — | H7: — | I7: — | J7: — | K7: — | L7: — | M7: — | N7: — | O7: — | P7: — | Q7: — | R7: — | S7: — | T7: — | U7: — | V7: — | W7: — | X7: — | Y7: 助管
A8: 6 | B8: 2022210553 | C8: 亢华旭 | D8: 工程学硕 | E8: — | F8: — | G8: — | H8: — | I8: — | J8: — | K8: — | L8: — | M8: — | N8: — | O8: — | P8: — | Q8: — | R8: — | S8: — | T8: — | U8: — | V8: — | W8: — | X8: — | Y8: 兼职辅导员
A9: 7 | B9: 2021200506 | C9: 何祉桥 | D9: 工程学硕 | E9: — | F9: — | G9: — | H9: — | I9: — | J9: — | K9: — | L9: — | M9: — | N9: — | O9: — | P9: — | Q9: — | R9: — | S9: — | T9: — | U9: — | V9: — | W9: — | X9: — | Y9: 兼职辅导员
A10: 8 | B10: 2022210539 | C10: 陈行健 | D10: 工程学硕 | E10: 93.502 | F10: 6 | G10: 0 | H10: 99.502 | I10: 0.9452883784 | J10: 94.52883784 | K10: 89.0476 | L10: 2 | M10: 0 | N10: 91.0476 | O10: 0.9984329508 | P10: 99.84329508 | Q10: 100 | R10: 1.5 | S10: 0 | T10: 101.5 | U10: 0.9397800081 | V10: 93.97800081 | W10: =J10*0.2+P10*0.7+V10*0.1 -> 98.19387421 | X10: =RANK(W10,$W$10:$W$50,) -> 1
A11: 9 | B11: 2022210575 | C11: 李欣磊 | D11: 工程学硕 | E11: 93.747 | F11: 8.53 | G11: 0 | H11: 102.277 | I11: 0.9716514189 | J11: 97.16514189 | K11: 88.84439 | L11: 0 | M11: 0 | N11: 88.84439 | O11: 0.9742724297 | P11: 97.42724297 | Q11: 100 | R11: 6.67 | S11: 0 | T11: 106.67 | U11: 0.9876486056 | V11: 98.76486056 | W11: 97.50858451 | X11: 2
A12: 10 | B12: 2022210501 | C12: 张洪业 | D12: 工程学硕 | E12: 93.208 | F12: 0 | G12: 0 | H12: 93.208 | I12: 0.8854941526 | J12: 88.54941526 | K12: 91.1905 | L12: 0 | M12: 0 | N12: 91.1905 | O12: 1 | P12: 100 | Q12: 100 | R12: 5 | S12: 0 | T12: 105 | U12: 0.9721862153 | V12: 97.21862153 | W12: 97.43174521 | X12: 3
A13: 11 | B13: 2022210508 | C13: 赵文龙 | D13: 工程学硕 | E13: 94.461 | F13: 10.8 | G13: 0 | H13: 105.261 | I13: 1 | J13: 100 | K13: 88.5 | L13: 0 | M13: 0 | N13: 88.5 | O13: 0.9704958302 | P13: 97.04958302 | Q13: 100 | R13: 2 | S13: 0 | T13: 102 | U13: 0.9444094663 | V13: 94.44094663 | W13: 97.37880277 | X13: 4
A14: 12 | B14: 2022210544 | C14: 李雨晴 | D14: 工程学硕 | E14: 93.474 | F14: 2 | G14: 0 | H14: 95.474 | I14: 0.9070215939 | J14: 90.70215939 | K14: 86.92099 | L14: 3.75 | M14: 0 | N14: 90.67099 | O14: 0.994303025 | P14: 99.4303025 | Q14: 100 | R14: 0 | S14: 0 | T14: 100 | U14: 0.9258916336 | V14: 92.58916336 | W14: 97.00055996 | X14: 5
A15: 13 | B15: 2022210560 | C15: 刘明明 | D15: 工程学硕 | E15: 93.656 | F15: 10.13 | G15: 0 | H15: 103.786 | I15: 0.9859872127 | J15: 98.59872127 | K15: 87.03126 | L15: 0 | M15: 0 | N15: 87.03126 | O15: 0.9543895472 | P15: 95.43895472 | Q15: 100 | R15: 4.67 | S15: 0 | T15: 104.67 | U15: 0.9691307729 | V15: 96.91307729 | W15: 96.21832029 | X15: 6
A16: 14 | B16: 2022210618 | C16: 胡渤 | D16: 工程学硕 | E16: 93.572 | F16: 0.5 | G16: 0 | H16: 94.072 | I16: 0.8937023209 | J16: 89.37023209 | K16: 89.28375 | L16: 0 | M16: 0 | N16: 89.28375 | O16: 0.9790904754 | P16: 97.90904754 | Q16: 100 | R16: 0 | S16: 0 | T16: 100 | U16: 0.9258916336 | V16: 92.58916336 | W16: 95.66929603 | X16: 7
A17: 15 | B17: 2022210577 | C17: 周燏 | D17: 工程学硕 | E17: 93.67 | F17: 0 | G17: 0 | H17: 93.67 | I17: 0.8898832426 | J17: 88.98832426 | K17: 89.06108 | L17: 0 | M17: 0 | N17: 89.06108 | O17: 0.9766486641 | P17: 97.66486641 | Q17: 100 | R17: 0.5 | S17: 0 | T17: 100.5 | U17: 0.9305210918 | V17: 93.05210918 | W17: 95.46828225 | X17: 8
A18: 16 | B18: 2022210608 | C18: 赵婷婷 | D18: 工程学硕 | E18: 93.537 | F18: 7 | G18: 0 | H18: 100.537 | I18: 0.95512108 | J18: 95.512108 | K18: 86.684 | L18: 0 | M18: 0 | N18: 86.684 | O18: 0.950581475 | P18: 95.0581475 | Q18: 100 | R18: 5.37 | S18: 0 | T18: 105.37 | U18: 0.9756120144 | V18: 97.56120144 | W18: 95.399245 | X18: 9
A19: 17 | B19: 2022210574 | C19: 韩雨芹 | D19: 工程学硕 | E19: 93.887 | F19: 6.6 | G19: 0 | H19: 100.487 | I19: 0.9546460702 | J19: 95.46460702 | K19: 87.05 | L19: 0 | M19: 0 | N19: 87.05 | O19: 0.954595051 | P19: 95.4595051 | Q19: 100 | R19: 2 | S19: 0 | T19: 102 | U19: 0.9444094663 | V19: 94.44094663 | W19: 95.35866964 | X19: 10
A20: 18 | B20: 2022210527 | C20: 王贵方 | D20: 工程学硕 | E20: 93.131 | F20: 2 | G20: 0 | H20: 95.131 | I20: 0.9037630271 | J20: 90.37630271 | K20: 88.39376 | L20: 0 | M20: 0 | N20: 88.39376 | O20: 0.9693307965 | P20: 96.93307965 | Q20: 100 | R20: 0.5 | S20: 0 | T20: 100.5 | U20: 0.9305210918 | V20: 93.05210918 | W20: 95.23362722 | X20: 11
A21: 19 | B21: 2022210606 | C21: 崔子元 | D21: 工程学硕 | E21: 93.453 | F21: 11.8 | G21: 0 | H21: 105.253 | I21: 0.9999239984 | J21: 99.99239984 | K21: 84.86841 | L21: 0.75 | M21: 0 | N21: 85.61841 | O21: 0.9388961569 | P21: 93.88961569 | Q21: 100 | R21: 2 | S21: 0 | T21: 102 | U21: 0.9444094663 | V21: 94.44094663 | W21: 95.16530562 | X21: 12
A22: 20 | B22: 2022210502 | C22: 朱金铸 | D22: 工程学硕 | E22: 94.062 | F22: 10.8 | G22: 0 | H22: 104.862 | I22: 0.9962094223 | J22: 99.62094223 | K22: 85.5238 | L22: 0.19 | M22: 0 | N22: 85.7138 | O22: 0.9399422089 | P22: 93.99422089 | Q22: 100 | R22: 2 | S22: 0 | T22: 102 | U22: 0.9444094663 | V22: 94.44094663 | W22: 95.16423773 | X22: 13
A23: 21 | B23: 2022210505 | C23: 郝一博 | D23: 工程学硕 | E23: 94.153 | F23: 10 | G23: 0 | H23: 104.153 | I23: 0.9894737842 | J23: 98.94737842 | K23: 85.72 | L23: 0 | M23: 0 | N23: 85.72 | O23: 0.9400101984 | P23: 94.00101984 | Q23: 100 | R23: 2 | S23: 0 | T23: 102 | U23: 0.9444094663 | V23: 94.44094663 | W23: 95.03428424 | X23: 14
A24: 22 | B24: 2022210506 | C24: 覃海航 | D24: 工程学硕 | E24: 93.523 | F24: 5.4 | G24: 0 | H24: 98.923 | I24: 0.9397877656 | J24: 93.97877656 | K24: 87.1 | L24: 0 | M24: 0 | N24: 87.1 | O24: 0.9551433537 | P24: 95.51433537 | Q24: 100 | R24: 0 | S24: 0 | T24: 100 | U24: 0.9258916336 | V24: 92.58916336 | W24: 94.91470641 | X24: 15
A25: 23 | B25: 2022210516 | C25: 梁爽爽 | D25: 工程学硕 | E25: 93.25 | F25: 5 | G25: 0 | H25: 98.25 | I25: 0.9333941346 | J25: 93.33941346 | K25: 87.18885 | L25: 0 | M25: 0 | N25: 87.18885 | O25: 0.9561176877 | P25: 95.61176877 | Q25: 100 | R25: 0 | S25: 0 | T25: 100 | U25: 0.9258916336 | V25: 92.58916336 | W25: 94.85503717 | X25: 16
A26: 24 | B26: 2022210515 | C26: 李重燃 | D26: 工程学硕 | E26: 93.677 | F26: 11 | G26: 0 | H26: 104.677 | I26: 0.9944518863 | J26: 99.44518863 | K26: 84.7916 | L26: 0 | M26: 0 | N26: 84.7916 | O26: 0.9298293134 | P26: 92.98293134 | Q26: 100 | R26: 4.67 | S26: 0 | T26: 104.67 | U26: 0.9691307729 | V26: 96.91307729 | W26: 94.66839739 | X26: 17
A27: 25 | B27: 2022210569 | C27: 王旖旎 | D27: 工程学硕 | E27: 93.509 | F27: 0 | G27: 0 | H27: 93.509 | I27: 0.8883537113 | J27: 88.83537113 | K27: 88.03126 | L27: 0 | M27: 0 | N27: 88.03126 | O27: 0.9653556017 | P27: 96.53556017 | Q27: 100 | R27: 0 | S27: 0 | T27: 100 | U27: 0.9258916336 | V27: 92.58916336 | W27: 94.60088268 | X27: 18
A28: 26 | B28: 2022210525 | C28: 李延辉 | D28: 工程学硕 | E28: 93.726 | F28: 8 | G28: 0 | H28: 101.726 | I28: 0.9664168115 | J28: 96.64168115 | K28: 81.167 | L28: 3.57 | M28: 0 | N28: 84.737 | O28: 0.9292305668 | P28: 92.92305668 | Q28: 100 | R28: 8.004 | S28: 0 | T28: 108.004 | U28: 1 | V28: 100 | W28: 94.37447591 | X28: 19
A29: 27 | B29: 2022210552 | C29: 高龙燕 | D29: 工程学硕 | E29: 93.488 | F29: 4.43 | G29: 0 | H29: 97.918 | I29: 0.9302400699 | J29: 93.02400699 | K29: 86.5946 | L29: 0 | M29: 0 | N29: 86.5946 | O29: 0.9496011098 | P29: 94.96011098 | Q29: 100 | R29: 0 | S29: 0 | T29: 100 | U29: 0.9258916336 | V29: 92.58916336 | W29: 94.33579542 | X29: 20
A30: 28 | B30: 2022210648 | C30: 包梦慧 | D30: 工程学硕 | E30: 93.579 | F30: 0 | G30: 0 | H30: 93.579 | I30: 0.8890187249 | J30: 88.90187249 | K30: 87.06876 | L30: 0 | M30: 0 | N30: 87.06876 | O30: 0.9548007742 | P30: 95.48007742 | Q30: 100 | R30: 0 | S30: 0 | T30: 100 | U30: 0.9258916336 | V30: 92.58916336 | W30: 93.87534503 | X30: 21
A31: 29 | B31: 2022210540 | C31: 皮婧婧 | D31: 工程学硕 | E31: 93.509 | F31: 0 | G31: 0 | H31: 93.509 | I31: 0.8883537113 | J31: 88.83537113 | K31: 87 | L31: 0 | M31: 0 | N31: 87 | O31: 0.9540467483 | P31: 95.40467483 | Q31: 100 | R31: 0.5 | S31: 0 | T31: 100.5 | U31: 0.9305210918 | V31: 93.05210918 | W31: 93.85555752 | X31: 22
A32: 30 | B32: 2022210561 | C32: 刘勇泉 | D32: 工程学硕 | E32: 93.208 | F32: 0 | G32: 0 | H32: 93.208 | I32: 0.8854941526 | J32: 88.54941526 | K32: 86.64376 | L32: 0 | M32: 0 | N32: 86.64376 | O32: 0.950140201 | P32: 95.0140201 | Q32: 100 | R32: 3 | S32: 0 | T32: 103 | U32: 0.9536683827 | V32: 95.36683827 | W32: 93.75638095 | X32: 23
A33: 31 | B33: 2022210576 | C33: 袁炳昊 | D33: 工程学硕 | E33: 93.719 | F33: 0 | G33: 0 | H33: 93.719 | I33: 0.8903487521 | J33: 89.03487521 | K33: 86.47777 | L33: 0 | M33: 0 | N33: 86.47777 | O33: 0.9483199456 | P33: 94.83199456 | Q33: 100 | R33: 1 | S33: 0 | T33: 101 | U33: 0.93515055 | V33: 93.515055 | W33: 93.54087674 | X33: 24
A34: 32 | B34: 2022210626 | C34: 武立宁 | D34: 工程学硕 | E34: 94.062 | F34: 8 | G34: 0 | H34: 102.062 | I34: 0.969608877 | J34: 96.9608877 | K34: 84.0529 | L34: 0 | M34: 0 | N34: 84.0529 | O34: 0.9217286888 | P34: 92.17286888 | Q34: 100 | R34: 2 | S34: 0 | T34: 102 | U34: 0.9444094663 | V34: 94.44094663 | W34: 93.35728042 | X34: 25
A35: 33 | B35: 2022210524 | C35: 蒋梦瑶 | D35: 工程学硕 | E35: 93.712 | F35: 4 | G35: 0 | H35: 97.712 | I35: 0.9282830298 | J35: 92.82830298 | K35: 84.12625 | L35: 0.4 | M35: 0 | N35: 84.52625 | O35: 0.9269194708 | P35: 92.69194708 | Q35: 100 | R35: 4.67 | S35: 0 | T35: 104.67 | U35: 0.9691307729 | V35: 96.91307729 | W35: 93.14133128 | X35: 26
A36: 34 | B36: 2022210595 | C36: 吴玥函 | D36: 工程学硕 | E36: 93.579 | F36: 8 | G36: 0 | H36: 101.579 | I36: 0.9650202829 | J36: 96.50202829 | K36: 84.07 | L36: 0 | M36: 0 | N36: 84.07 | O36: 0.9219162084 | P36: 92.19162084 | Q36: 100 | R36: 0 | S36: 0 | T36: 100 | U36: 0.9258916336 | V36: 92.58916336 | W36: 93.09345658 | X36: 27
A37: 35 | B37: 2022210568 | C37: 李庆旭 | D37: 工程学硕 | E37: 93.803 | F37: 3 | G37: 0 | H37: 96.803 | I37: 0.9196473528 | J37: 91.96473528 | K37: 84.63124 | L37: 0 | M37: 0 | N37: 84.63124 | O37: 0.9280707968 | P37: 92.80707968 | Q37: 100 | R37: 4.67 | S37: 0 | T37: 104.67 | U37: 0.9691307729 | V37: 96.91307729 | W37: 93.04921056 | X37: 28
A38: 36 | B38: 2022210598 | C38: 马晓存 | D38: 工程学硕 | E38: 93.292 | F38: 2 | G38: 0 | H38: 95.292 | I38: 0.9052925585 | J38: 90.52925585 | K38: 85.50554 | L38: 0 | M38: 0 | N38: 85.50554 | O38: 0.9376584184 | P38: 93.76584184 | Q38: 100 | R38: 0 | S38: 0 | T38: 100 | U38: 0.9258916336 | V38: 92.58916336 | W38: 93.00085679 | X38: 29
A39: 37 | B39: 2022210649 | C39: 李雅丽 | D39: 工程学硕 | E39: 93.691 | F39: 0.5 | G39: 0 | H39: 94.191 | I39: 0.8948328441 | J39: 89.48328441 | K39: 85.53125 | L39: 0 | M39: 0 | N39: 85.53125 | O39: 0.9379403556 | P39: 93.79403556 | Q39: 100 | R39: 0 | S39: 0 | T39: 100 | U39: 0.9258916336 | V39: 92.58916336 | W39: 92.81139811 | X39: 30
A40: 38 | B40: 2022210596 | C40: 李浩 | D40: 工程学硕 | E40: 93.215 | F40: 6.4 | G40: 0 | H40: 99.615 | I40: 0.9463619004 | J40: 94.63619004 | K40: 83.40554 | L40: 0 | M40: 0 | N40: 83.40554 | O40: 0.9146297038 | P40: 91.46297038 | Q40: 100 | R40: 2 | S40: 0 | T40: 102 | U40: 0.9444094663 | V40: 94.44094663 | W40: 92.39541193 | X40: 31
A41: 39 | B41: 2022210627 | C41: 赵荣鹏 | D41: 工程学硕 | E41: 93.404 | F41: 0 | G41: 0 | H41: 93.404 | I41: 0.8873561908 | J41: 88.73561908 | K41: 85.16174 | L41: 0 | M41: 0 | N41: 85.16174 | O41: 0.9338882888 | P41: 93.38882888 | Q41: 100 | R41: 0 | S41: 0 | T41: 100 | U41: 0.9258916336 | V41: 92.58916336 | W41: 92.37822037 | X41: 32
A42: 40 | B42: 2022210604 | C42: 武屹威 | D42: 工程学硕 | E42: 93.733 | F42: 4 | G42: 0 | H42: 97.733 | I42: 0.9284825339 | J42: 92.84825339 | K42: 82.97216 | L42: 0.1 | M42: 0 | N42: 83.07216 | O42: 0.9109738405 | P42: 91.09738405 | Q42: 100 | R42: 2 | S42: 0 | T42: 102 | U42: 0.9444094663 | V42: 94.44094663 | W42: 91.78191417 | X42: 33
A43: 41 | B43: 2022210559 | C43: 胡冰阳 | D43: 工程学硕 | E43: 93.362 | F43: 6 | G43: 0 | H43: 99.362 | I43: 0.9439583511 | J43: 94.39583511 | K43: 81.23126 | L43: 0 | M43: 0 | N43: 81.23126 | O43: 0.8907864306 | P43: 89.07864306 | Q43: 100 | R43: 6.67 | S43: 0 | T43: 106.67 | U43: 0.9876486056 | V43: 98.76486056 | W43: 91.11070322 | X43: 34
A44: 42 | B44: 2022210507 | C44: 汪雪敏 | D44: 工程学硕 | E44: 93.222 | F44: 2 | G44: 0 | H44: 95.222 | I44: 0.9046275449 | J44: 90.46275449 | K44: 83.035 | L44: 0 | M44: 0 | N44: 83.035 | O44: 0.9105663419 | P44: 91.05663419 | Q44: 100 | R44: 0 | S44: 0 | T44: 100 | U44: 0.9258916336 | V44: 92.58916336 | W44: 91.09111117 | X44: 35
A45: 43 | B45: 2022210619 | C45: 占彬 | D45: 工程学硕 | E45: 93.425 | F45: 0 | G45: 0 | H45: 93.425 | I45: 0.8875556949 | J45: 88.75556949 | K45: 83.41248 | L45: 0 | M45: 0 | N45: 83.41248 | O45: 0.9147058082 | P45: 91.47058082 | Q45: 100 | R45: 0 | S45: 0 | T45: 100 | U45: 0.9258916336 | V45: 92.58916336 | W45: 91.03943681 | X45: 36
A46: 44 | B46: 2022210611 | C46: 牛苗苗 | D46: 工程学硕 | E46: 93.887 | F46: 4 | G46: 0 | H46: 97.887 | I46: 0.9299455639 | J46: 92.99455639 | K46: 82.14581 | L46: 0 | M46: 0 | N46: 82.14581 | O46: 0.9008154358 | P46: 90.08154358 | Q46: 100 | R46: 0 | S46: 0 | T46: 100 | U46: 0.9258916336 | V46: 92.58916336 | W46: 90.91490812 | X46: 37
A47: 45 | B47: 2022210554 | C47: 赵波 | D47: 工程学硕 | E47: 93.222 | F47: 2 | G47: 0 | H47: 95.222 | I47: 0.9046275449 | J47: 90.46275449 | K47: 81.61108 | L47: 0 | M47: 0 | N47: 81.61108 | O47: 0.8949515575 | P47: 89.49515575 | Q47: 100 | R47: 0 | S47: 0 | T47: 100 | U47: 0.9258916336 | V47: 92.58916336 | W47: 89.99807626 | X47: 38
A48: 46 | B48: 2022210636 | C48: 刘雪 | D48: 工程学硕 | E48: 93.439 | F48: 0 | G48: 0 | H48: 93.439 | I48: 0.8876886976 | J48: 88.76886976 | K48: 81.52355 | L48: 0 | M48: 0 | N48: 81.52355 | O48: 0.8939916987 | P48: 89.39916987 | Q48: 100 | R48: 0.5 | S48: 0 | T48: 100.5 | U48: 0.9305210918 | V48: 93.05210918 | W48: 89.63840378 | X48: 39
A49: 47 | B49: 2022210545 | C49: 王刚 | D49: 工程学硕 | E49: 93.691 | F49: 2 | G49: 0 | H49: 95.691 | I49: 0.9090831362 | J49: 90.90831362 | K49: 79.41053 | L49: 0 | M49: 0 | N49: 79.41053 | O49: 0.8708202061 | P49: 87.08202061 | Q49: 100 | R49: 8 | S49: 0 | T49: 108 | U49: 0.9999629643 | V49: 99.99629643 | W49: 89.13870679 | X49: 40
A50: 48 | B50: 2022210637 | C50: 王琦 | D50: 工程学硕 | E50: 93.313 | F50: 4.4 | G50: 0 | H50: 97.71 | I50: 0.92829253 | J50: 92.829253 | K50: 77.56174 | L50: 0 | M50: 0 | N50: 77.56174 | O50: 0.850546274 | P50: 85.0546274 | Q50: 100 | R50: 1 | S50: 0 | T50: 101 | U50: 0.93515055 | V50: 93.515055 | W50: 87.45559528 | X50: 41

Sheet 工程专硕
A1: 序号 | B1: 姓名 | C1: 方向 | D1: 德育部分 | J1: 智育部分 | P1: 文体部分 | V1: 总分 | W1: 排名
D2: 基础分 | E2: 奖励分 | F2: 惩罚分 | G2: 个人德育总分 | H2: 个人德育总分/基准 | I2: 德育总成绩 | J2: 基础分 | K2: 奖励分 | L2: 惩罚分 | M2: 个人智育总分 | N2: 个人智育总分/基准 | O2: 智育总成绩 | P2: 基础分 | Q2: 奖励分 | R2: 惩罚分 | S2: 个人文体总分 | T2: 个人文体总分/基准 | U2: 文体总成绩
A3: 1 | B3: 赵宏宇 | C3: 化学工程专硕 | D3: 95.7 | E3: 13.4 | F3: 0 | G3: 109.1 | H3: 0.9900181488 | I3: 99.00181488 | J3: 89.54 | K3: 0 | L3: 0 | M3: 89.54 | N3: 0.9840641829 | O3: 98.40641829 | P3: 100 | Q3: 15.5 | R3: 0 | S3: 115.5 | T3: 1 | U3: 100 | V3: 98.68485578 | W3: 1
A4: 2 | B4: 董丽 | C4: 化学工程专硕 | D4: 96.4 | E4: 13.8 | F4: 0 | G4: 110.2 | H4: 1 | I4: 100 | J4: 87.58 | K4: 0 | L4: 0 | M4: 87.58 | N4: 0.9625233542 | O4: 96.25233542 | P4: 100 | Q4: 6.17 | R4: 0 | S4: 106.17 | T4: 0.9192207792 | U4: 91.92207792 | V4: 96.56884259 | W4: 2
A5: 3 | B5: 宋艳雯 | C5: 化学工程专硕 | D5: 95.7 | E5: 0 | F5: 0 | G5: 95.7 | H5: 0.8684210526 | I5: 86.84210526 | J5: 90.99 | K5: 0 | L5: 0 | M5: 90.99 | N5: 1 | O5: 100 | P5: 100 | Q5: 0.5 | R5: 0 | S5: 100.5 | T5: 0.8701298701 | U5: 87.01298701 | V5: 96.06971975 | W5: 3
A6: 4 | B6: 卢芳芳 | C6: 化学工程专硕 | D6: 95 | E6: 0.5 | F6: 0 | G6: 95.5 | H6: 0.8666061706 | I6: 86.66061706 | J6: 90.65 | K6: 0 | L6: 0 | M6: 90.65 | N6: 0.9962633256 | O6: 99.62633256 | P6: 100 | Q6: 3.83 | R6: 0 | S6: 103.83 | T6: 0.898961039 | U6: 89.8961039 | V6: 96.0601666 | W6: 4
A7: 5 | B7: 李汉成 | C7: 化学工程专硕 | D7: 96.4 | E7: 6.33 | F7: 0 | G7: 102.73 | H7: 0.9322141561 | I7: 93.22141561 | J7: 87.24 | K7: 0.4 | L7: 0 | M7: 87.64 | N7: 0.9631827673 | O7: 96.31827673 | P7: 100 | Q7: 5.67 | R7: 0 | S7: 105.67 | T7: 0.9148917749 | U7: 91.48917749 | V7: 95.21599458 | W7: 5
A8: 6 | B8: 陈巧玲 | C8: 化学工程专硕 | D8: 95.7 | E8: 2 | F8: 0 | G8: 97.7 | H8: 0.886569873 | I8: 88.6569873 | J8: 87.58 | K8: 0 | L8: 0 | M8: 87.58 | N8: 0.9625233542 | O8: 96.25233542 | P8: 100 | Q8: 15.5 | R8: 0 | S8: 115.5 | T8: 1 | U8: 100 | V8: 95.10803225 | W8: 6
A9: 7 | B9: 史天乐 | C9: 化学工程专硕 | D9: 95.7 | E9: 8.734 | F9: 0 | G9: 104.434 | H9: 0.947676951 | I9: 94.7676951 | J9: 87.56 | K9: 0 | L9: 0 | M9: 87.56 | N9: 0.9623035498 | O9: 96.23035498 | P9: 100 | Q9: 1.5 | R9: 0 | S9: 101.5 | T9: 0.8787878788 | U9: 87.87878788 | V9: 95.1026663 | W9: 7
A10: 8 | B10: 戎清 | C10: 化学工程专硕 | D10: 95.4 | E10: 2 | F10: 0 | G10: 97.4 | H10: 0.8838475499 | I10: 88.38475499 | J10: 89.09 | K10: 0 | L10: 0 | M10: 89.09 | N10: 0.9791185845 | O10: 97.91185845 | P10: 100 | Q10: 1 | R10: 0 | S10: 101 | T10: 0.8744588745 | U10: 87.44588745 | V10: 94.95984065 | W10: 8
A11: 9 | B11: 王延硕 | C11: 化学工程专硕 | D11: 95.7 | E11: 9.47 | F11: 0 | G11: 105.17 | H11: 0.9543557169 | I11: 95.43557169 | J11: 86.1 | K11: 0 | L11: 0 | M11: 86.1 | N11: 0.9462578305 | O11: 94.62578305 | P11: 100 | Q11: 6.17 | R11: 0 | S11: 106.17 | T11: 0.9192207792 | U11: 91.92207792 | V11: 94.51737027 | W11: 9
A12: 10 | B12: 魏学洋 | C12: 化学工程专硕 | D12: 93.6 | E12: 5.67 | F12: 0 | G12: 99.27 | H12: 0.9008166969 | I12: 90.08166969 | J12: 87.09 | K12: 0 | L12: 0 | M12: 87.09 | N12: 0.957138147 | O12: 95.7138147 | P12: 100 | Q12: 7.67 | R12: 0 | S12: 107.67 | T12: 0.9322077922 | U12: 93.22077922 | V12: 94.33808215 | W12: 10
A13: 11 | B13: 张藤铧 | C13: 化学工程专硕 | D13: 95.7 | E13: 4 | F13: 0 | G13: 99.7 | H13: 0.9047186933 | I13: 90.47186933 | J13: 87.37 | K13: 0.0125 | L13: 0 | M13: 87.3825 | N13: 0.960352786 | O13: 96.0352786 | P13: 100 | Q13: 0.5 | R13: 0 | S13: 100.5 | T13: 0.8701298701 | U13: 87.01298701 | V13: 94.02036759 | W13: 11
A14: 12 | B14: 关晶 | C14: 化学工程专硕 | D14: 95.7 | E14: 4 | F14: 0 | G14: 99.7 | H14: 0.9047186933 | I14: 90.47186933 | J14: 86.04 | K14: 0 | L14: 0 | M14: 86.04 | N14: 0.9455984174 | O14: 94.55984174 | P14: 100 | Q14: 12 | R14: 0 | S14: 112 | T14: 0.9696969697 | U14: 96.96969697 | V14: 93.98323278 | W14: 12
A15: 13 | B15: 王凤凤 | C15: 化学工程专硕 | D15: 95.1 | E15: 4.5 | F15: 0 | G15: 99.6 | H15: 0.9038112523 | I15: 90.38112523 | J15: 86.99 | K15: 0 | L15: 0 | M15: 86.99 | N15: 0.9560391252 | O15: 95.60391252 | P15: 100 | Q15: 0.5 | R15: 0 | S15: 100.5 | T15: 0.8701298701 | U15: 87.01298701 | V15: 93.70026251 | W15: 13
A16: 14 | B16: 齐保辉 | C16: 化学工程专硕 | D16: 95.7 | E16: 6.13 | F16: 0 | G16: 101.83 | H16: 0.9240471869 | I16: 92.40471869 | J16: 85.26 | K16: 0 | L16: 0 | M16: 85.26 | N16: 0.9370260468 | O16: 93.70260468 | P16: 100 | Q16: 8.5 | R16: 0 | S16: 108.5 | T16: 0.9393939394 | U16: 93.93939394 | V16: 93.46670641 | W16: 14
A17: 15 | B17: 王宁宁 | C17: 化学工程专硕 | D17: 95.7 | E17: 0 | F17: 0 | G17: 95.7 | H17: 0.8684210526 | I17: 86.84210526 | J17: 87.52 | K17: 0 | L17: 0 | M17: 87.52 | N17: 0.9618639411 | O17: 96.18639411 | P17: 100 | Q17: 0.5 | R17: 0 | S17: 100.5 | T17: 0.8701298701 | U17: 87.01298701 | V17: 93.40019563 | W17: 15
A18: 16 | B18: 李逸飞 | C18: 化学工程专硕 | D18: 95 | E18: 3 | F18: 0 | G18: 98 | H18: 0.889292196 | I18: 88.9292196 | J18: 86.4 | K18: 0 | L18: 0 | M18: 86.4 | N18: 0.9495548961 | O18: 94.95548961 | P18: 100 | Q18: 3 | R18: 0 | S18: 103 | T18: 0.8917748918 | U18: 89.17748918 | V18: 93.17243557 | W18: 16
A19: 17 | B19: 陈瑜洲 | C19: 化学工程专硕 | D19: 95 | E19: 2 | F19: 0 | G19: 97 | H19: 0.8802177858 | I19: 88.02177858 | J19: 85.49 | K19: 0 | L19: 0 | M19: 85.49 | N19: 0.9395537971 | O19: 93.95537971 | P19: 100 | Q19: 5.17 | R19: 0 | S19: 105.17 | T19: 0.9105627706 | U19: 91.05627706 | V19: 92.47874922 | W19: 17
A20: 18 | B20: 李宝隆 | C20: 化学工程专硕 | D20: 95 | E20: 10.4 | F20: 0 | G20: 105.4 | H20: 0.9564428312 | I20: 95.64428312 | J20: 82.93 | K20: 0 | L20: 0 | M20: 82.93 | N20: 0.9114188372 | O20: 91.14188372 | P20: 100 | Q20: 5.67 | R20: 0 | S20: 105.67 | T20: 0.9148917749 | U20: 91.48917749 | V20: 92.07709298 | W20: 18
A21: 19 | B21: 王琳 | C21: 化学工程专硕 | D21: 95.7 | E21: 0 | F21: 0 | G21: 95.7 | H21: 0.8684210526 | I21: 86.84210526 | J21: 84.38 | K21: 0 | L21: 0 | M21: 84.38 | N21: 0.9273546544 | O21: 92.73546544 | P21: 100 | Q21: 8.5 | R21: 0 | S21: 108.5 | T21: 0.9393939394 | U21: 93.93939394 | V21: 91.67718625 | W21: 19
A22: 20 | B22: 屈光仁 | C22: 化学工程专硕 | D22: 95.7 | E22: 0 | F22: 0 | G22: 95.7 | H22: 0.8684210526 | I22: 86.84210526 | J22: 84.42 | K22: 0 | L22: 0 | M22: 84.42 | N22: 0.9277942631 | O22: 92.77942631 | P22: 100 | Q22: 4.33 | R22: 0 | S22: 104.33 | T22: 0.9032900433 | U22: 90.32900433 | V22: 91.3469199 | W22: 20
A23: 21 | B23: 徐文磊 | C23: 化学工程专硕 | D23: 95.7 | E23: 0 | F23: 0 | G23: 95.7 | H23: 0.8684210526 | I23: 86.84210526 | J23: 84.38 | K23: 0 | L23: 0 | M23: 84.38 | N23: 0.9273546544 | O23: 92.73546544 | P23: 100 | Q23: 0.5 | R23: 0 | S23: 100.5 | T23: 0.8701298701 | U23: 87.01298701 | V23: 90.98454556 | W23: 21
A24: 22 | B24: 吕琛 | C24: 化学工程专硕 | D24: 95 | E24: 3 | F24: 0 | G24: 98 | H24: 0.889292196 | I24: 88.9292196 | J24: 82.58 | K24: 0 | L24: 0 | M24: 82.58 | N24: 0.9075722607 | O24: 90.75722607 | P24: 100 | Q24: 5.17 | R24: 0 | S24: 105.17 | T24: 0.9105627706 | U24: 91.05627706 | V24: 90.42152987 | W24: 22
A25: 23 | B25: 边昊 | C25: 化学工程专硕 | D25: 95.7 | E25: 2 | F25: 0 | G25: 97.7 | H25: 0.886569873 | I25: 88.6569873 | J25: 81.62 | K25: 0 | L25: 0 | M25: 81.62 | N25: 0.8970216507 | O25: 89.70216507 | P25: 100 | Q25: 8.5 | R25: 0 | S25: 108.5 | T25: 0.9393939394 | U25: 93.93939394 | V25: 89.9168524 | W25: 23
A26: 24 | B26: 张耀森 | C26: 化学工程专硕 | D26: 96.4 | E26: 5.67 | F26: 0 | G26: 102.07 | H26: 0.9262250454 | I26: 92.62250454 | J26: 78.6 | K26: 0 | L26: 0 | M26: 78.6 | N26: 0.8638311902 | O26: 86.38311902 | P26: 100 | Q26: 8.5 | R26: 0 | S26: 108.5 | T26: 0.9393939394 | U26: 93.93939394 | V26: 88.38662362 | W26: 24
A27: 25 | B27: 王程 | C27: 化学工程专硕 | D27: 95.7 | E27: 0 | F27: 0 | G27: 95.7 | H27: 0.8684210526 | I27: 86.84210526 | J27: 80.6 | K27: 0 | L27: 0 | M27: 80.6 | N27: 0.8858116277 | O27: 88.58116277 | P27: 100 | Q27: 0.5 | R27: 0 | S27: 100.5 | T27: 0.8701298701 | U27: 87.01298701 | V27: 88.07653369 | W27: 25
A28: 26 | B28: 王鹏 | C28: 化学工程专硕 | D28: 95 | E28: 0 | F28: 0 | G28: 95 | H28: 0.8620689655 | I28: 86.20689655 | J28: 80.71 | K28: 0 | L28: 0 | M28: 80.71 | N28: 0.8870205517 | O28: 88.70205517 | P28: 100 | Q28: 0.5 | R28: 0 | S28: 100.5 | T28: 0.8701298701 | U28: 87.01298701 | V28: 88.03411663 | W28: 26
A29: 27 | B29: 邵瀚锋 | C29: 化学工程专硕 | D29: 95 | E29: 0 | F29: 0 | G29: 95 | H29: 0.8620689655 | I29: 86.20689655 | J29: 79.82 | K29: 0 | L29: 0 | M29: 79.82 | N29: 0.8772392571 | O29: 87.72392571 | P29: 100 | Q29: 0.5 | R29: 0 | S29: 100.5 | T29: 0.8701298701 | U29: 87.01298701 | V29: 87.34942601 | W29: 27
A30: 28 | B30: 刘浩天 | C30: 化学工程专硕 | D30: 95 | E30: 4.4 | F30: 0 | G30: 99.4 | H30: 0.9019963702 | I30: 90.19963702 | J30: 76.84 | K30: 0 | L30: 0 | M30: 76.84 | N30: 0.8444884053 | O30: 84.44884053 | P30: 100 | Q30: 0.5 | R30: 0 | S30: 100.5 | T30: 0.8701298701 | U30: 87.01298701 | V30: 85.85541448 | W30: 28

Sheet 催化学硕
A1: 序号 | B1: 学号 | C1: 姓名 | D1: 方向 | E1: 德育成绩 | K1: 智育成绩 | Q1: 文体成绩 | W1: 总分 | X1: 排名 | Y1: 备注
E2: 基础分 | F2: 奖励分 | G2: 惩罚分 | H2: 个人德育总分 | I2: 个人德育总分/基准 | J2: 德育总成绩 | K2: 基础分 | L2: 奖励分 | M2: 惩罚分 | N2: 个人智育总分 | O2: 个人智育总分/基准 | P2: 智育总成绩 | Q2: 基本分 | R2: 奖励分 | S2: 惩罚分 | T2: 个人文体总分 | U2: 个人文体总分/基准 | V2: 文体总成绩
A3: 1 | B3: 2022210615 | C3: 金玮 | D3: 催化学硕 | E3: — | F3: — | G3: — | H3: — | I3: — | J3: — | K3: — | L3: — | M3: — | N3: — | O3: — | P3: — | Q3: — | R3: — | S3: — | T3: — | U3: — | V3: — | W3: — | X3: — | Y3: 兼职辅导员
A4: 2 | B4: 2022210512 | C4: 娄颖洁 | D4: 催化学硕 | E4: 97.59189189 | F4: 6.5 | G4: 0 | H4: =E4+F4+G4 -> 104.0918919 | I4: =H4/109.4459 -> 0.9510807795 | J4: =I4*100 -> 95.10807795 | K4: 89.63 | L4: 1.75 | M4: 0 | N4: =K4+L4 -> 91.38 | O4: =N4/91.79 -> 0.9955332825 | P4: =O4*100 -> 99.55332825 | Q4: 100 | R4: 3.33 | S4: 0 | T4: =Q4+R4 -> 103.33 | U4: =T4/115 -> 0.8985217391 | V4: =U4*100 -> 89.85217391 | W4: =J4*0.2+P4*0.7+V4*0.1 -> 97.69416276 | X4: 1
A5: 3 | B5: 2022210534 | C5: 李章明 | D5: 催化学硕 | E5: 97.93243243 | F5: 4 | G5: 0 | H5: 101.9324324 | I5: 0.9313499403 | J5: 93.13499403 | K5: 91.79 | L5: 0 | M5: 0 | N5: 91.79 | O5: 1 | P5: 100 | Q5: 100 | R5: 0 | S5: 0 | T5: 100 | U5: 0.8695652174 | V5: 86.95652174 | W5: 97.32265098 | X5: 2
A6: 4 | B6: 2022210614 | C6: 郭盈铄 | D6: 催化学硕 | E6: 97.97027027 | F6: 5.9 | G6: 0 | H6: 103.8702703 | I6: 0.9490558374 | J6: 94.90558374 | K6: 90.39 | L6: 0 | M6: 0 | N6: 90.39 | O6: 0.9847477939 | P6: 98.47477939 | Q6: 100 | R6: 0 | S6: 0 | T6: =Q6+R6 -> 100 | U6: 0.8695652174 | V6: 86.95652174 | W6: 96.60911449 | X6: 3
A7: 5 | B7: 2022210650 | C7: 王鑫雨 | D7: 催化学硕 | E7: 97.95135135 | F7: 4.57 | G7: 0 | H7: 102.5213514 | I7: 0.9367308538 | J7: 93.67308538 | K7: 89.72 | L7: 0 | M7: 0 | N7: 89.72 | O7: 0.9774485238 | P7: 97.74485238 | Q7: 100 | R7: 7.3 | S7: 0 | T7: 107.3 | U7: 0.9330434783 | V7: 93.30434783 | W7: 96.48644852 | X7: 4
A8: 6 | B8: 2022210535 | C8: 王岚 | D8: 催化学硕 | E8: 97.81891892 | F8: 9 | G8: 0 | H8: 106.8189189 | I8: 0.9759974464 | J8: 97.59974464 | K8: 88.68 | L8: 0 | M8: 0 | N8: 88.68 | O8: 0.9661183135 | P8: 96.61183135 | Q8: 100 | R8: 0 | S8: 0 | T8: 100 | U8: 0.8695652174 | V8: 86.95652174 | W8: 95.84388305 | X8: 5
A9: 7 | B9: 2022210514 | C9: 邬银丹 | D9: 催化学硕 | E9: 98.1027027 | F9: 1 | G9: 0 | H9: 99.1027027 | I9: 0.9054948856 | J9: 90.54948856 | K9: 89.416 | L9: 0 | M9: 0 | N9: 89.416 | O9: 0.9741366162 | P9: 97.41366162 | Q9: 100 | R9: 0 | S9: 0 | T9: 100 | U9: 0.8695652174 | V9: 86.95652174 | W9: 94.99511302 | X9: 6
A10: 8 | B10: 2022210585 | C10: 杨驰 | D10: 催化学硕 | E10: 98.00810811 | F10: 8.1 | G10: 0 | H10: 106.1081081 | I10: 0.9695028147 | J10: 96.95028147 | K10: 87.18 | L10: 0 | M10: 0 | N10: 87.18 | O10: 0.9497766641 | P10: 94.97766641 | Q10: 100 | R10: 0 | S10: 0 | T10: =Q10+R10 -> 100 | U10: 0.8695652174 | V10: 86.95652174 | W10: 94.57007496 | X10: 7
A11: 9 | B11: 2022210565 | C11: 王娜 | D11: 催化学硕 | E11: 97.97027027 | F11: 7.5 | G11: 0 | H11: 105.4702703 | I11: 0.9636749323 | J11: 96.36749323 | K11: 86.40 | L11: 0 | M11: 0 | N11: 86.4 | O11: 0.9412790064 | P11: 94.12790064 | Q11: 100 | R11: 7 | S11: 0 | T11: 107 | U11: 0.9304347826 | V11: 93.04347826 | W11: 94.46737692 | X11: 8
A12: 10 | B12: 2022210528 | C12: 郭慧娟 | D12: 催化学硕 | E12: 97.95135135 | F12: 8.7 | G12: 0 | H12: 106.6513513 | I12: 0.9744663925 | J12: 97.44663925 | K12: 85.81 | L12: 0 | M12: 0 | N12: 85.81 | O12: 0.934851291 | P12: 93.4851291 | Q12: 100 | R12: 6.67 | S12: 0 | T12: 106.67 | U12: 0.9275652174 | V12: 92.75652174 | W12: 94.20457039 | X12: 9
A13: 11 | B13: 2022210616 | C13: 马阿慧 | D13: 催化学硕 | E13: 98.06486486 | F13: 5 | G13: 0 | H13: 103.0648649 | I13: 0.941696901 | J13: 94.1696901 | K13: 84.94 | L13: 1.875 | M13: 0 | N13: 86.815 | O13: 0.9458001961 | P13: 94.58001961 | Q13: 100 | R13: 0 | S13: 0 | T13: 100 | U13: 0.8695652174 | V13: 86.95652174 | W13: 93.73560392 | X13: 10
A14: 12 | B14: 2022210589 | C14: 杜大兴 | D14: 催化学硕 | E14: 98.12162162 | F14: 5 | G14: 0 | H14: 103.1216216 | I14: 0.9422154838 | J14: 94.22154838 | K14: 86.74 | L14: 0 | M14: 0 | N14: 86.74 | O14: 0.9449831136 | P14: 94.49831136 | Q14: 100 | R14: 0 | S14: 0 | T14: 100 | U14: 0.8695652174 | V14: 86.95652174 | W14: 93.6887798 | X14: 11
A15: 13 | B15: 2022210623 | C15: 王露露 | D15: 催化学硕 | E15: 98.29189189 | F15: 9.5 | G15: 0 | H15: 107.7918919 | I15: 0.9848874365 | J15: 98.48874365 | K15: 83.89 | L15: 0 | M15: 0 | N15: 83.89 | O15: 0.9139339797 | P15: 91.39339797 | Q15: 100 | R15: 15 | S15: 0 | T15: 115 | U15: 1 | V15: 100 | W15: 93.67312731 | X15: 12
A16: 14 | B16: 2022210566 | C16: 王子溪 | D16: 催化学硕 | E16: 98.01388889 | F16: 5.83 | G16: 0 | H16: 103.8438889 | I16: 0.9488147924 | J16: 94.88147924 | K16: 85.89 | L16: 0 | M16: 0 | N16: 85.89 | O16: 0.9357228456 | P16: 93.57228456 | Q16: 100 | R16: 0 | S16: 0 | T16: 100 | U16: 0.8695652174 | V16: 86.95652174 | W16: 93.17254722 | X16: 13
A17: 15 | B17: 2022210513 | C17: 王玲珑 | D17: 催化学硕 | E17: 97.95135135 | F17: 3 | G17: 0 | H17: 100.9513513 | I17: 0.9223858669 | J17: 92.23858669 | K17: 86.17 | L17: 0 | M17: 0 | N17: 86.17 | O17: 0.9387732869 | P17: 93.87732869 | Q17: 100 | R17: 0 | S17: 0 | T17: =Q17+R17 -> 100 | U17: 0.8695652174 | V17: 86.95652174 | W17: 92.85749959 | X17: 14
A18: 16 | B18: 2022210617 | C18: 魏豪斌 | D18: 催化学硕 | E18: 98.02702703 | F18: 5 | G18: 0 | H18: 103.027027 | I18: 0.9413511793 | J18: 94.13511793 | K18: 85.29 | L18: 0 | M18: 0 | N18: 85.29 | O18: 0.9291861859 | P18: 92.91861859 | Q18: 100 | R18: 0 | S18: 0 | T18: 100 | U18: 0.8695652174 | V18: 86.95652174 | W18: 92.56570877 | X18: 15
A19: 17 | B19: 2022210590 | C19: 檀宇航 | D19: 催化学硕 | E19: 98.04594595 | F19: 1 | G19: 0 | H19: 99.04594595 | I19: 0.9049763029 | J19: 90.49763029 | K19: 85.19 | L19: 0 | M19: 0 | N19: 85.19 | O19: 0.9280967426 | P19: 92.80967426 | Q19: 100 | R19: 0 | S19: 0 | T19: 100 | U19: 0.8695652174 | V19: 86.95652174 | W19: 91.76195021 | X19: 16
A20: 18 | B20: 2022210562 | C20: 韩玉潇 | D20: 催化学硕 | E20: 98.02702703 | F20: 5.9 | G20: 0 | H20: 103.927027 | I20: 0.9495744201 | J20: 94.95744201 | K20: 83.05 | L20: 0 | M20: 0 | N20: 83.05 | O20: 0.9047826561 | P20: 90.47826561 | Q20: 100 | R20: 6.67 | S20: 0 | T20: 106.67 | U20: 0.9275652174 | V20: 92.75652174 | W20: 91.6019265 | X20: 17
A21: 19 | B21: 2022210563 | C21: 王精文 | D21: 催化学硕 | E21: 98.08378378 | F21: 6.4 | G21: 0 | H21: 104.4837838 | I21: 0.95466147 | J21: 95.466147 | K21: 83.65 | L21: 0 | M21: 0 | N21: 83.65 | O21: 0.9113193158 | P21: 91.13193158 | Q21: 100 | R21: 0 | S21: 0 | T21: =Q21+R21 -> 100 | U21: 0.8695652174 | V21: 86.95652174 | W21: 91.58123368 | X21: 18
A22: 20 | B22: 2022210558 | C22: 周佳玥 | D22: 催化学硕 | E22: 98.04594595 | F22: 11.4 | G22: 0 | H22: 109.445946 | I22: 1 | J22: 100 | K22: 82.16 | L22: 0 | M22: 0 | N22: 82.16 | O22: 0.8950866107 | P22: 89.50866107 | Q22: 100 | R22: 0 | S22: 0 | T22: 100 | U22: 0.8695652174 | V22: 86.95652174 | W22: 91.35171493 | X22: 19
A23: 21 | B23: 2022210564 | C23: 胡临凯 | D23: 催化学硕 | E23: 97.98918919 | F23: 5.5 | G23: 0 | H23: 103.4891892 | I23: =H23/109.4459 -> 0.9455739246 | J23: 94.55739246 | K23: 83.34 | L23: 0 | M23: 0 | N23: 83.34 | O23: 0.9079420416 | P23: 90.79420416 | Q23: 100 | R23: 0 | S23: 0 | T23: 100 | U23: 0.8695652174 | V23: 86.95652174 | W23: 91.16307358 | X23: 20
A24: 22 | B24: 2022210651 | C24: 徐豪 | D24: 催化学硕 | E24: 97.95135135 | F24: 5.17 | G24: 0 | H24: 103.1213513 | I24: =H24/109.4459 -> 0.9422130144 | J24: 94.22130144 | K24: 82.96 | L24: 0 | M24: 0 | N24: 82.96 | O24: 0.9038021571 | P24: 90.38021571 | Q24: 100 | R24: 0 | S24: 0 | T24: 100 | U24: 0.8695652174 | V24: 86.95652174 | W24: 90.80606346 | X24: 21
A25: 23 | B25: 2022210504 | C25: 郑佳硕 | D25: 催化学硕 | E25: 98.02702703 | F25: 6.4 | G25: 0 | H25: 104.427027 | I25: =H25/109.4459 -> 0.9541428873 | J25: 95.41428873 | K25: 82.24 | L25: 0 | M25: 0 | N25: 82.24 | O25: 0.8959581654 | P25: 89.59581654 | Q25: 100 | R25: 3 | S25: 0 | T25: =Q25+R25 -> 103 | U25: 0.8956521739 | V25: 89.56521739 | W25: 90.75645106 | X25: 23
A26: 24 | B26: 2022210635 | C26: 王硕 | D26: 催化学硕 | E26: 97.83783784 | F26: 1 | G26: 0 | H26: 98.83783784 | I26: 0.9030748328 | J26: 90.30748328 | K26: 83.81 | L26: 0 | M26: 0 | N26: 83.81 | O26: 0.9130624251 | P26: 91.30624251 | Q26: 100 | R26: 0 | S26: 0 | T26: 100 | U26: 0.8695652174 | V26: 86.95652174 | W26: 90.67151859 | X26: 24
A27: 25 | B27: 2022210518 | C27: 柳静 | D27: 催化学硕 | E27: 97.83783784 | F27: 5.5 | G27: 0 | H27: 103.3378378 | I27: 0.9441910372 | J27: 94.41910372 | K27: 82.71 | L27: 0 | M27: 0 | N27: 82.71 | O27: 0.9010785489 | P27: 90.10785489 | Q27: 100 | R27: 0 | S27: 0 | T27: 100 | U27: 0.8695652174 | V27: 86.95652174 | W27: 90.65497134 | X27: 25
A28: 26 | B28: 2022210503 | C28: 李昌昕 | D28: 催化学硕 | E28: 97.95135135 | F28: 1 | G28: 0 | H28: 98.95135135 | I28: 0.9041119983 | J28: 90.41119983 | K28: 83.655 | L28: 0 | M28: 0 | N28: 83.655 | O28: 0.911373788 | P28: 91.1373788 | Q28: 100 | R28: 0 | S28: 0 | T28: 100 | U28: 0.8695652174 | V28: 86.95652174 | W28: 90.5740573 | X28: 26
A29: 27 | B29: 2022210542 | C29: 宋杨 | D29: 催化学硕 | E29: 97.95135135 | F29: 1 | G29: 0 | H29: 98.95135135 | I29: 0.9041119983 | J29: 90.41119983 | K29: 83.49 | L29: 0 | M29: 0 | N29: 83.49 | O29: 0.9095762066 | P29: 90.95762066 | Q29: 100 | R29: 0 | S29: 0 | T29: 100 | U29: 0.8695652174 | V29: 86.95652174 | W29: 90.4482266 | X29: 27
A30: 28 | B30: 2022210644 | C30: 何刚 | D30: 催化学硕 | E30: 97.78108108 | F30: 3 | G30: 0 | H30: 100.7810811 | I30: 0.9208301186 | J30: 92.08301186 | K30: 82.85 | L30: 0 | M30: 0 | N30: 82.85 | O30: 0.9026037695 | P30: 90.26037695 | Q30: 100 | R30: 0 | S30: 0 | T30: 100 | U30: 0.8695652174 | V30: 86.95652174 | W30: 90.29451841 | X30: 28
A31: 29 | B31: 2022210557 | C31: 张福海 | D31: 催化学硕 | E31: 97.83783784 | F31: 1 | G31: 0 | H31: 98.83783784 | I31: 0.9030748328 | J31: 90.30748328 | K31: 83.09 | L31: 0 | M31: 0 | N31: 83.09 | O31: 0.9052184334 | P31: 90.52184334 | Q31: 100 | R31: 0 | S31: 0 | T31: 100 | U31: 0.8695652174 | V31: 86.95652174 | W31: 90.12243917 | X31: 29
A32: 30 | B32: 2022210646 | C32: 季冀涛 | D32: 催化学硕 | E32: 97.87567568 | F32: 0 | G32: -2 | H32: 95.87567568 | I32: 0.8760097517 | J32: 87.60097517 | K32: 83.59 | L32: 0 | M32: 0 | N32: 83.59 | O32: 0.9106656499 | P32: 91.06656499 | Q32: 100 | R32: 0 | S32: 0 | T32: 100 | U32: 0.8695652174 | V32: 86.95652174 | W32: 89.9624427 | X32: 31
A33: 31 | B33: 2022210529 | C33: 景文江 | D33: 催化学硕 | E33: 97.91351351 | F33: 1 | G33: 0 | H33: 98.91351351 | I33: 0.9037662764 | J33: 90.37662764 | K33: 81.69 | L33: 0 | M33: 0 | N33: 81.69 | O33: 0.8899662273 | P33: 88.99662273 | Q33: 100 | R33: 0 | S33: 0 | T33: =Q33+R33 -> 100 | U33: 0.8695652174 | V33: 86.95652174 | W33: 89.06861361 | X33: 32
A34: 32 | B34: 2022210556 | C34: 马佳倩 | D34: 催化学硕 | E34: 97.81891892 | F34: 5.43 | G34: 0 | H34: 103.2489189 | I34: 0.9433785909 | J34: 94.33785909 | K34: 80.53 | L34: 0 | M34: 0 | N34: 80.53 | O34: 0.877328685 | P34: 87.7328685 | Q34: 100 | R34: 0 | S34: 0 | T34: 100 | U34: 0.8695652174 | V34: 86.95652174 | W34: 88.97623194 | X34: 33
A35: 33 | B35: 2022210643 | C35: 管学峰 | D35: 催化学硕 | E35: 97.97027027 | F35: 1 | G35: 0 | H35: 98.97027027 | I35: 0.9042848592 | J35: 90.42848592 | K35: 81.45 | L35: 0 | M35: 0 | N35: 81.45 | O35: 0.8873515634 | P35: 88.73515634 | Q35: 100 | R35: 0 | S35: 0 | T35: 100 | U35: 0.8695652174 | V35: 86.95652174 | W35: 88.89595879 | X35: 34
A36: 34 | B36: 2022210634 | C36: 王祺元 | D36: 催化学硕 | E36: 98.06486486 | F36: 1 | G36: 0 | H36: 99.06486486 | I36: 0.9051491637 | J36: 90.51491637 | K36: 80.00 | L36: 0 | M36: 0 | N36: 80 | O36: 0.8715546356 | P36: 87.15546356 | Q36: 100 | R36: 0 | S36: 0 | T36: 100 | U36: 0.8695652174 | V36: 86.95652174 | W36: 87.80745994 | X36: 35
A37: 35 | B37: 2022210555 | C37: 程伟男 | D37: 催化学硕 | E37: 97.83783784 | F37: 1 | G37: -2 | H37: 96.83783784 | I37: 0.8848009641 | J37: 88.48009641 | K37: 77.68 | L37: 0 | M37: 0 | N37: 77.68 | O37: 0.8462795511 | P37: 84.62795511 | Q37: 100 | R37: 0 | S37: 0 | T37: 100 | U37: 0.8695652174 | V37: 86.95652174 | W37: 85.63124004 | X37: 36
A38: 36 | B38: 2022210586 | C38: 张宇琪 | D38: 催化学硕 | E38: 97.87567568 | F38: 1 | G38: -2 | H38: 96.87567568 | I38: 0.885146686 | J38: 88.5146686 | K38: 69.83 | L38: 0 | M38: 0 | N38: 69.83 | O38: 0.7607582525 | P38: 76.07582525 | Q38: 100 | R38: 0 | S38: 0 | T38: 100 | U38: 0.8695652174 | V38: 86.95652174 | W38: 79.65166357 | X38: 37

Sheet 催化专硕
B1: 序号 | C1: 姓名 | D1: 方向 | E1: 德育部分 | K1: 智育部分 | Q1: 文体部分 | W1: 总分 | X1: 排名
E2: 基础分 | F2: 奖励分 | G2: 惩罚分 | H2: 个人德育总分 | I2: 个人德育总分/基准 | J2: 德育总成绩 | K2: 基础分 | L2: 奖励分 | M2: 惩罚分 | N2: 个人智育总分 | O2: 个人智育总分/基准 | P2: 智育总成绩 | Q2: 基础分 | R2: 奖励分 | S2: 惩罚分 | T2: 个人文体总分 | U2: 个人文体总分/基准 | V2: 文体总成绩
A3: 1 | B3: 1 | C3: 张豪丹 | D3: 催化专硕 | E3: 95.7 | F3: 9 | G3: 0 | H3: 104.7 | I3: 0.9500907441 | J3: 95.00907441 | K3: 87.9 | L3: 0 | M3: 0 | N3: 87.9 | O3: 0.9660402242 | P3: 96.60402242 | Q3: 100 | R3: 13.56 | S3: 0 | T3: 113.56 | U3: 0.9832034632 | V3: 98.32034632 | W3: 96.45666521 | X3: 1
A4: 2 | B4: 2 | C4: 徐智超 | D4: 催化专硕 | E4: 95 | F4: 2 | G4: 0 | H4: 97 | I4: 0.8802177858 | J4: 88.02177858 | K4: 90.22 | L4: 0 | M4: 0 | N4: 90.22 | O4: 0.9915375316 | P4: 99.15375316 | Q4: 100 | R4: 1 | S4: 0 | T4: 101 | U4: 0.8744588745 | V4: 87.44588745 | W4: 95.75657167 | X4: 2
A5: 3 | B5: 3 | C5: 张婷 | D5: 催化专硕 | E5: 95 | F5: 0 | G5: 0 | H5: 95 | I5: 0.8620689655 | J5: 86.20689655 | K5: 89.95 | L5: 0 | M5: 0 | N5: 89.95 | O5: 0.9885701725 | P5: 98.85701725 | Q5: 100 | R5: 6.6 | S5: 0 | T5: 106.6 | U5: 0.9229437229 | V5: 92.29437229 | W5: 95.67072862 | X5: 3
A6: 4 | B6: 4 | C6: 汪博迪 | D6: 催化专硕 | E6: 94.3 | F6: 0 | G6: 0 | H6: 94.3 | I6: 0.8557168784 | J6: 85.57168784 | K6: 90.55 | L6: 0 | M6: 0 | N6: 90.55 | O6: 0.9951643038 | P6: 99.51643038 | Q6: 100 | R6: 0.5 | S6: 0 | T6: 100.5 | U6: 0.8701298701 | V6: 87.01298701 | W6: 95.47713753 | X6: 4
A7: 5 | B7: 5 | C7: 乔倩 | D7: 催化专硕 | E7: 95 | F7: 8.57 | G7: 0 | H7: 103.57 | I7: 0.9398366606 | J7: 93.98366606 | K7: 87.04 | L7: 0 | M7: 0 | N7: 87.04 | O7: 0.9565886361 | P7: 95.65886361 | Q7: 100 | R7: 2.5 | S7: 0 | T7: 102.5 | U7: 0.8874458874 | V7: 88.74458874 | W7: 94.63239661 | X7: 5
A8: 6 | B8: 6 | C8: 王银磊 | D8: 催化专硕 | E8: 95 | F8: 2 | G8: 0 | H8: 97 | I8: 0.8802177858 | J8: 88.02177858 | K8: 88.72 | L8: 0 | M8: 0 | N8: 88.72 | O8: 0.9750522035 | P8: 97.50522035 | Q8: 100 | R8: 1 | S8: 0 | T8: 101 | U8: 0.8744588745 | V8: 87.44588745 | W8: 94.60259871 | X8: 6
A9: 7 | B9: 7 | C9: 韩心怡 | D9: 催化专硕 | E9: 95 | F9: 0 | G9: 0 | H9: 95 | I9: 0.8620689655 | J9: 86.20689655 | K9: 89.24 | L9: 0 | M9: 0 | N9: 89.24 | O9: 0.9807671173 | P9: 98.07671173 | Q9: 100 | R9: 0.5 | S9: 0 | T9: 100.5 | U9: 0.8701298701 | V9: 87.01298701 | W9: 94.59637622 | X9: 7
A10: 8 | B10: 8 | C10: 谢保振 | D10: 催化专硕 | E10: 96.4 | F10: 7.2 | G10: 0 | H10: 103.6 | I10: 0.9401088929 | J10: 94.01088929 | K10: 86.16 | L10: 0.58 | M10: 0 | N10: 86.74 | O10: 0.9532915705 | P10: 95.32915705 | Q10: 100 | R10: 2 | S10: 0 | T10: 102 | U10: 0.8831168831 | V10: 88.31168831 | W10: 94.36375662 | X10: 8
A11: 9 | B11: 9 | C11: 董宇晴 | D11: 催化专硕 | E11: 95.7 | F11: 7 | G11: 0 | H11: 102.7 | I11: 0.9319419238 | J11: 93.19419238 | K11: 86.51 | L11: 0 | M11: 0 | N11: 86.51 | O11: 0.9507638202 | P11: 95.07638202 | Q11: 100 | R11: 3 | S11: 0 | T11: 103 | U11: 0.8917748918 | V11: 89.17748918 | W11: 94.11005481 | X11: 9
A12: 10 | B12: 10 | C12: 刘涵 | D12: 催化专硕 | E12: 96.4 | F12: 3.57 | H12: 99.97 | I12: 0.907168784 | J12: 90.7168784 | K12: 85.39 | L12: 0 | M12: 0 | N12: 85.39 | O12: 0.9384547753 | P12: 93.84547753 | Q12: 100 | R12: 8.67 | S12: 0 | T12: 108.67 | U12: 0.9408658009 | V12: 94.08658009 | W12: 93.24386796 | X12: 10
A13: 11 | B13: 11 | C13: 王文骁 | D13: 催化专硕 | E13: 94.3 | F13: 0 | G13: 0 | H13: 94.3 | I13: 0.8557168784 | J13: 85.57168784 | K13: 87.1 | L13: 0 | M13: 0 | N13: 87.1 | O13: 0.9572480492 | P13: 95.72480492 | Q13: 100 | R13: 3.83 | S13: 0 | T13: 103.83 | U13: 0.898961039 | V13: 89.8961039 | W13: 93.1113114 | X13: 11
A14: 12 | B14: 12 | C14: 胡丹丹 | D14: 催化专硕 | E14: 95.7 | F14: 5 | G14: 0 | H14: 100.7 | I14: 0.9137931034 | J14: 91.37931034 | K14: 85.73 | L14: 0 | M14: 0 | N14: 85.73 | O14: 0.9421914496 | P14: 94.21914496 | Q14: 100 | R14: 1 | S14: 0 | T14: 101 | U14: 0.8744588745 | V14: 87.44588745 | W14: 92.97385229 | X14: 12
A15: 13 | B15: 13 | C15: 李状 | D15: 催化专硕 | E15: 95 | F15: 0 | G15: 0 | H15: 95 | I15: 0.8620689655 | J15: 86.20689655 | K15: 86.29 | L15: 0 | M15: 0 | N15: 86.29 | O15: 0.9483459721 | P15: 94.83459721 | Q15: 100 | R15: 0.5 | S15: 0 | T15: 100.5 | U15: 0.8701298701 | V15: 87.01298701 | W15: 92.32689606 | X15: 13
A16: 14 | B16: 14 | C16: 赵辰 | D16: 催化专硕 | E16: 95 | F16: 7 | G16: 0 | H16: 102 | I16: 0.9255898367 | J16: 92.55898367 | K16: 83.37 | L16: 0 | M16: 0 | N16: 83.37 | O16: 0.9162545335 | P16: 91.62545335 | Q16: 100 | R16: 5.67 | T16: 105.67 | U16: 0.9148917749 | V16: 91.48917749 | W16: 91.79853182 | X16: 14
A17: 15 | B17: 15 | C17: 吕向杰 | D17: 催化专硕 | E17: 95.7 | F17: 3.37 | G17: 0 | H17: 99.07 | I17: 0.8990018149 | J17: 89.90018149 | K17: 84.57 | L17: 0 | M17: 0 | N17: 84.57 | O17: 0.9294427959 | P17: 92.94427959 | Q17: 100 | R17: 1 | S17: 0 | T17: 101 | U17: 0.8744588745 | V17: 87.44588745 | W17: 91.78562076 | X17: 15
A18: 16 | B18: 16 | C18: 李建辉 | D18: 催化专硕 | E18: 95.7 | F18: 3.67 | G18: 0 | H18: 99.37 | I18: 0.9017241379 | J18: 90.17241379 | K18: 84.125 | L18: 0 | M18: 0 | N18: 84.125 | O18: 0.9245521486 | P18: 92.45521486 | Q18: 100 | R18: 1 | S18: 0 | T18: 101 | U18: 0.8744588745 | V18: 87.44588745 | W18: 91.4977219 | X18: 16
A19: 17 | B19: 17 | C19: 王延一 | D19: 催化专硕 | E19: 95.7 | F19: 6 | G19: 0 | H19: 101.7 | I19: 0.9228675136 | J19: 92.28675136 | K19: 83.48 | L19: 0 | M19: 0 | N19: 83.48 | O19: 0.9174634575 | P19: 91.74634575 | Q19: 100 | R19: 0.5 | S19: 0 | T19: 100.5 | U19: 0.8701298701 | V19: 87.01298701 | W19: 91.381091 | X19: 17
A20: 18 | B20: 18 | C20: 翟敏慧 | D20: 催化专硕 | E20: 95 | F20: 0.5 | G20: 0 | H20: 95.5 | I20: 0.8666061706 | J20: 86.66061706 | K20: 82.28 | L20: 0 | M20: 0 | N20: 82.28 | O20: 0.9042751951 | P20: 90.42751951 | Q20: 100 | R20: 0.5 | S20: 0 | T20: 100.5 | U20: 0.8701298701 | V20: 87.01298701 | W20: 89.33268577 | X20: 18
A21: 19 | B21: 19 | C21: 安海涛 | D21: 催化专硕 | E21: 95.7 | F21: 3.67 | G21: 0 | H21: 99.37 | I21: 0.9017241379 | J21: 90.17241379 | K21: 77.36 | L21: 0 | M21: 0 | N21: 77.36 | O21: 0.850203319 | P21: 85.0203319 | Q21: 100 | R21: 9.67 | S21: 0 | T21: 109.67 | U21: 0.9495238095 | V21: 94.95238095 | W21: 87.04395319 | X21: 19
A22: 20 | B22: 20 | C22: 徐焘 | D22: 催化专硕 | E22: 95 | F22: 0 | G22: 0 | H22: 95 | I22: 0.8620689655 | J22: 86.20689655 | K22: 78.36 | L22: 0 | M22: 0 | N22: 78.36 | O22: 0.8611935378 | P22: 86.11935378 | Q22: 100 | R22: 0 | S22: 0 | T22: 100 | U22: 0.8658008658 | V22: 86.58008658 | W22: 86.18293561 | X22: 20

Sheet 环境学硕
A1: 序号 | B1: 学号 | C1: 姓名 | D1: 方向 | E1: 德育成绩 | K1: 智育成绩 | Q1: 文体成绩 | W1: 总分 | X1: 排名
E2: 基础分 | F2: 奖励分 | G2: 惩罚分 | H2: 个人德育总分 | I2: 个人德育总分/基准 | J2: 德育总成绩 | K2: 基础分 | L2: 奖励分 | M2: 惩罚分 | N2: 个人智育总分 | O2: 个人智育总分/基准 | P2: 智育总成绩 | Q2: 基础分 | R2: 奖励分 | S2: 惩罚分 | T2: 个人文体总分 | U2: 个人文体总分/基准 | V2: 文体总成绩
A3: 1 | B3: 2021210659 | C3: 冯扬帆 | D3: 环境学硕 | E3: — | F3: — | G3: — | H3: — | I3: — | J3: — | K3: — | L3: — | M3: — | N3: — | O3: — | P3: — | Q3: — | R3: — | S3: — | T3: — | U3: — | V3: — | W3: — | X3: — | Y3: 助管
A4: 2 | B4: 2021210666 | C4: 熊子馨 | D4: 环境学硕 | E4: — | F4: — | G4: — | H4: — | I4: — | J4: — | K4: — | L4: — | M4: — | N4: — | O4: — | P4: — | Q4: — | R4: — | S4: — | T4: — | U4: — | V4: — | W4: — | X4: — | Y4: 助管
A5: 3 | B5: 2022210665 | C5: 李翀 | D5: 环境学硕 | E5: 95.50833333 | F5: 16.1 | G5: 0 | H5: 111.6083333 | I5: =J5/100 -> 0.9996268 | J5: 99.962681 | K5: 84.67647059 | L5: 3.875 | M5: 0 | N5: 88.55147059 | O5: =P5/100 -> 0.9852737 | P5: 98.52736644 | Q5: 100 | R5: 4.67 | S5: 0 | T5: 104.67 | U5: =V5/100 -> 0.9395871 | V5: 93.95870736 | W5: =J5*0.2+P5*0.7+V5*0.1 -> 98.3575634 | X5: 1
A6: 4 | B6: 2022210679 | C6: 桂雨飞 | D6: 环境学硕 | E6: 95.09428571 | F6: 11 | G6: 0 | H6: 106.0942857 | I6: 0.9502399 | J6: 95.02399079 | K6: 87.99915966 | L6: 0 | M6: 0 | N6: 87.99915966 | O6: 0.9791283 | P6: 97.91283412 | Q6: 100 | R6: 10.93 | S6: 0 | T6: 110.93 | U6: 0.9957810 | V6: 99.57809695 | W6: 97.5015917 | X6: 2
A7: 5 | B7: 2022210664 | C7: 曹谨慧 | D7: 环境学硕 | E7: 95.22285714 | F7: 2.5 | G7: 0 | H7: 97.72285714 | I7: 0.8752607 | J7: 87.52606999 | K7: 86 | L7: 3.875 | M7: 0 | N7: 89.875 | O7: 1.0000000 | P7: 100 | Q7: 100 | R7: 0 | S7: 0 | T7: 100 | U7: 0.8976661 | V7: 89.76660682 | W7: 96.4818747 | X7: 3
A8: 6 | B8: 2022210657 | C8: 李莉 | D8: 环境学硕 | E8: 95.2142857 | F8: 9 | G8: 0 | H8: 104.2142857 | I8: 0.9334016 | J8: 93.3401574 | K8: 88.3151261 | L8: 0 | M8: 0 | N8: 88.31512605 | O8: 0.9826440 | P8: 98.26439616 | Q8: 100 | R8: 0 | S8: 0 | T8: 100 | U8: 0.8976661 | V8: 89.7666068 | W8: 96.4297695 | X8: 4
A9: 7 | B9: 2022210680 | C9: 渠长双 | D9: 环境学硕 | E9: 95.00857143 | F9: 5.5 | G9: 0 | H9: 100.5085714 | I9: 0.9002111 | J9: 90.02111189 | K9: 85.62521008 | L9: 2 | M9: 0 | N9: 87.62521008 | O9: 0.9749676 | P9: 97.4967567 | Q9: 100 | R9: 3.8 | S9: 0 | T9: 103.8 | U9: 0.9317774 | V9: 93.17773788 | W9: 95.5697259 | X9: 5
A10: 8 | B10: 2022210666 | C10: 李瑶 | D10: 环境学硕 | E10: 95.11666667 | F10: 10.5 | G10: 0 | H10: 105.6166667 | I10: 0.9459621 | J10: 94.59620839 | K10: 86.84 | L10: 0 | M10: 0 | N10: 86.84 | O10: 0.9662309 | P10: 96.62308762 | Q10: 100 | R10: 0 | S10: 0 | T10: 100 | U10: 0.8976661 | V10: 89.76660682 | W10: 95.5320637 | X10: 6
A11: 9 | B11: 2022210652 | C11: 方洁 | D11: 环境学硕 | E11: 95.1000000 | F11: 10 | G11: 0 | H11: 105.4000000 | I11: 0.9440215 | J11: 94.4021496 | K11: 85.8806723 | L11: 0 | M11: 0 | N11: 85.88067227 | O11: 0.9555569 | P11: 95.55568542 | Q11: 100 | R11: 6.67 | S11: 0 | T11: 106.67 | U11: 0.9575404 | V11: 95.7540395 | W11: 95.3448137 | X11: 7
A12: 10 | B12: 2022210681 | C12: 孙舵 | D12: 环境学硕 | E12: 95.10285714 | F12: 9.3 | G12: 0 | H12: 104.4028571 | I12: 0.9350905 | J12: 93.50905252 | K12: 85.87058824 | L12: 0 | M12: 0 | N12: 85.87058824 | O12: 0.9554447 | P12: 95.54446535 | Q12: 100 | R12: 0 | S12: 0 | T12: 100 | U12: 0.8976661 | V12: 89.76660682 | W12: 94.5595969 | X12: 8
A13: 11 | B13: 2022210667 | C13: 沈燕婷 | D13: 环境学硕 | E13: 95.09428571 | F13: 9.5 | G13: 0 | H13: 104.5942857 | I13: 0.9368051 | J13: 93.68050669 | K13: 85.54 | L13: 0 | M13: 0 | N13: 85.54 | O13: 0.9517663 | P13: 95.17663421 | Q13: 100 | R13: 0 | S13: 0 | T13: 100 | U13: 0.8976661 | V13: 89.76660682 | W13: 94.3364060 | X13: 9
A14: 12 | B14: 2022210685 | C14: 石云飞 | D14: 环境学硕 | E14: 95.14166667 | F14: 3 | G14: 0 | H14: 98.14166667 | I14: 0.8790118 | J14: 87.90117928 | K14: 86.1 | L14: 0 | M14: 0 | N14: 86.1 | O14: 0.9579972 | P14: 95.79972184 | Q14: 100 | R14: 4.67 | S14: 0 | T14: 104.67 | U14: 0.9395871 | V14: 93.95870736 | W14: 94.0359119 | X14: 10
A15: 13 | B15: 2022210673 | C15: 谭鑫 | D15: 环境学硕 | E15: 95.04166667 | F15: 5 | G15: 0 | H15: 100.0416667 | I15: 0.8960293 | J15: 89.60292581 | K15: 85.13333333 | L15: 0 | M15: 0 | N15: 85.13333333 | O15: 0.9472415 | P15: 94.72415392 | Q15: 100 | R15: 0 | S15: 0 | T15: 100 | U15: 0.8976661 | V15: 89.76660682 | W15: 93.2041536 | X15: 11
A16: 14 | B16: 2022210658 | C16: 薛甜甜 | D16: 环境学硕 | E16: 95.1800000 | F16: 7 | G16: 0 | H16: 101.9800000 | I16: 0.9133901 | J16: 91.3390058 | K16: 84.3210084 | L16: 0 | M16: 0 | N16: 84.3210084 | O16: 0.9382032 | P16: 93.82031533 | Q16: 100 | R16: 0 | S16: 0 | T16: 100 | U16: 0.8976661 | V16: 89.7666068 | W16: 92.9186826 | X16: 12
A17: 15 | B17: 2022210663 | C17: 王添谊 | D17: 环境学硕 | E17: 95.025 | F17: 3 | G17: 0 | H17: 97.5250000 | I17: 0.8734886 | J17: 87.3488580 | K17: 84.2285714 | L17: 0 | M17: 0 | N17: 84.22857143 | O17: 0.9371746 | P17: 93.71746473 | Q17: 100 | R17: 0 | S17: 0 | T17: 100 | U17: 0.8976661 | V17: 89.7666068 | W17: 92.0486576 | X17: 13
A18: 16 | B18: 2022210671 | C18: 李智豪 | D18: 环境学硕 | E18: 94.9 | F18: 5.5 | G18: 0 | H18: 100.4 | I18: 0.8992387 | J18: 89.92386923 | K18: 82.58253968 | L18: 0 | M18: 0 | N18: 82.58253968 | O18: 0.9188600 | P18: 91.88599687 | Q18: 100 | R18: 0 | S18: 0 | T18: 100 | U18: 0.8976661 | V18: 89.76660682 | W18: 91.2816323 | X18: 14
A19: 17 | B19: 2022210682 | C19: 步路通 | D19: 环境学硕 | E19: 95.09166667 | F19: 2.5 | G19: 0 | H19: 97.59166667 | I19: 0.8740857 | J19: 87.40856844 | K19: 83.19333333 | L19: 0 | M19: 0 | N19: 83.19333333 | O19: 0.9256560 | P19: 92.56560037 | Q19: 100 | R19: 0 | S19: 0 | T19: 100 | U19: 0.8976661 | V19: 89.76660682 | W19: 91.2542946 | X19: 15
A20: 18 | B20: 2022210661 | C20: 黄德安 | D20: 环境学硕 | E20: 95.5500000 | F20: 16 | G20: 0 | H20: 111.6500000 | I20: 1.0000000 | J20: 100.0000000 | K20: 79.2714286 | L20: 0 | M20: 0 | N20: 79.27142857 | O20: 0.8820187 | P20: 88.20186767 | Q20: 100 | R20: 0 | S20: 0 | T20: 100 | U20: 0.8976661 | V20: 89.7666068 | W20: 90.7179681 | X20: 16
A21: 19 | B21: 2022210676 | C21: 赵政翰 | D21: 环境学硕 | E21: 95.12 | F21: 8 | G21: 0 | H21: 103.12 | I21: 0.9236005 | J21: 92.36005374 | K21: 80.84201681 | L21: 0 | M21: 0 | N21: 80.84201681 | O21: 0.8994939 | P21: 89.94939283 | Q21: 100 | R21: 0 | S21: 0 | T21: 100 | U21: 0.8976661 | V21: 89.76660682 | W21: 90.4132464 | X21: 17
A22: 20 | B22: 2022210669 | C22: 郭川钰 | D22: 环境学硕 | E22: 95.075 | F22: 1 | G22: 0 | H22: 96.075 | I22: 0.8605016 | J22: 86.05015674 | K22: 81.11176471 | L22: 0.2 | M22: 0 | N22: 81.31176471 | O22: 0.9047206 | P22: 90.47206087 | Q22: 100 | R22: 6.67 | S22: 0 | T22: 106.67 | U22: 0.9575404 | V22: 95.7540395 | W22: 90.1158779 | X22: 18
A23: 21 | B23: 2022210678 | C23: 胡若晖 | D23: 环境学硕 | E23: 94.99142857 | F23: 2 | G23: 0 | H23: 96.99142857 | I23: 0.8687096 | J23: 86.87096155 | K23: 81.83888889 | L23: 0 | M23: 0 | N23: 81.83888889 | O23: 0.9105857 | P23: 91.058569 | Q23: 100 | R23: 0 | S23: 0 | T23: 100 | U23: 0.8976661 | V23: 89.76660682 | W23: 90.0918513 | X23: 19
A24: 22 | B24: 2022210683 | C24: 宋登昊 | D24: 环境学硕 | E24: 94.90833333 | F24: 2.5 | G24: 0 | H24: 97.40833333 | I24: 0.8724436 | J24: 87.24436483 | K24: 80.21888889 | L24: 0 | M24: 0 | N24: 80.21888889 | O24: 0.8925607 | P24: 89.25606552 | Q24: 100 | R24: 11.4 | S24: 0 | T24: 111.4 | U24: 1.0000000 | V24: 100 | W24: 89.9281188 | X24: 20
A25: 23 | B25: 2022210662 | C25: 孙国庆 | D25: 环境学硕 | E25: 94.96571429 | F25: 5 | G25: 0 | H25: 99.9657143 | I25: 0.8953490 | J25: 89.5348986 | K25: 80.6714286 | L25: 0 | M25: 0 | N25: 80.67142857 | O25: 0.8975959 | P25: 89.75958673 | Q25: 100 | R25: 0 | S25: 0 | T25: 100 | U25: 0.8976661 | V25: 89.7666068 | W25: 89.7153511 | X25: 21
A26: 24 | B26: 2022210674 | C26: 邢甜甜 | D26: 环境学硕 | E26: 94.78571429 | F26: 2.5 | G26: 0 | H26: 97.28571429 | I26: 0.8713454 | J26: 87.13454034 | K26: 80.56666667 | L26: 0 | M26: 0 | N26: 80.56666667 | O26: 0.8964302 | P26: 89.64302272 | Q26: 100 | R26: 0 | S26: 0 | T26: 100 | U26: 0.8976661 | V26: 89.76660682 | W26: 89.1536847 | X26: 22
A27: 25 | B27: 2022210675 | C27: 李启明 | D27: 环境学硕 | E27: 94.96666667 | F27: 3 | G27: 0 | H27: 97.96666667 | I27: 0.8774444 | J27: 87.74443947 | K27: 79.87058824 | L27: 0 | M27: 0 | N27: 79.87058824 | O27: 0.8886853 | P27: 88.86852655 | Q27: 100 | R27: 0 | S27: 0 | T27: 100 | U27: 0.8976661 | V27: 89.76660682 | W27: 88.7335172 | X27: 23
A28: 26 | B28: 2022210653 | C28: 郭鹏涛 | D28: 环境学硕 | E28: 94.9314286 | F28: 5 | G28: 0 | H28: 99.9314286 | I28: 0.8950419 | J28: 89.5041904 | K28: 75.4847059 | L28: 0 | M28: 0 | N28: 75.48470588 | O28: 0.8398855 | P28: 83.98854618 | Q28: 100 | R28: 0 | S28: 0 | T28: 100 | U28: 0.8976661 | V28: 89.7666068 | W28: 85.6694811 | X28: 24

Sheet 环境专硕
A1: 序号 | B1: 学号 | C1: 姓名 | D1: 方向 | E1: 德育成绩 | K1: 智育成绩 | Q1: 文体成绩 | W1: 总分 | X1: 排名
E2: 基础分 | F2: 奖励分 | G2: 惩罚分 | H2: 个人德育总分 | I2: 个人德育总分/基准 | J2: 德育总成绩 | K2: 基础分 | L2: 奖励分 | M2: 惩罚分 | N2: 个人智育总分 | O2: 个人智育总分/基准 | P2: 智育总成绩 | Q2: 基础分 | R2: 奖励分 | S2: 惩罚分 | T2: 个人文体总分 | U2: 个人文体总分/基准 | V2: 文体总成绩
A3: 1 | B3: 2022215390 | C3: 冯博 | D3: 环境专硕 | E3: 95.2000000 | F3: 9 | G3: 0 | H3: 104.2000000 | I3: =J3/100 -> 0.9858222 | J3: =H3*100/105.6985714 -> 98.58222171 | K3: 88.8027778 | L3: 0 | M3: 0 | N3: 88.80277778 | O3: =P3/100 -> 0.9904944 | P3: 99.04944262 | Q3: 100 | R3: 0 | S3: 0 | T3: 100 | U3: =V3/100 -> 0.9014694 | V3: 90.1469395 | W3: =J3*0.2+P3*0.7+V3*0.1 -> 98.0657481 | X3: 1
A4: 2 | B4: 2022215389 | C4: 颜薇 | D4: 环境专硕 | E4: 95.5228571 | F4: 3 | G4: 0 | H4: 98.0228571 | I4: 0.9273811 | J4: 92.73810974 | K4: 89.5500000 | L4: 0 | M4: 0 | N4: 89.655 | O4: 1.0000000 | P4: 100 | Q4: 100 | R4: 0 | S4: 0 | T4: 100 | U4: 0.9014694 | V4: 90.1469395 | W4: 97.5623159 | X4: 2
A5: 3 | B5: 2022215388 | C5: 吴琪 | D5: 环境专硕 | E5: 95.3600000 | F5: 2 | G5: 0 | H5: 97.3600000 | I5: 0.9211099 | J5: 92.1109895 | K5: 89.1444444 | L5: 0 | M5: 0 | N5: 89.46944444 | O5: 0.9979303 | P5: 99.79303379 | Q5: 100 | R5: 0 | S5: 0 | T5: 100 | U5: 0.9014694 | V5: 90.1469395 | W5: 97.2920155 | X5: 3
A6: 4 | B6: 2022215395 | C6: 王铭华 | D6: 环境专硕 | E6: 95.36857143 | F6: 10.33 | G6: 0 | H6: 105.6985714 | I6: 1.0000000 | J6: 100 | K6: 86.06666667 | L6: 0 | M6: 0 | N6: 86.06666667 | O6: 0.9599762 | P6: 95.99762051 | Q6: 100 | R6: 10.93 | S6: 0 | T6: 110.93 | U6: 1.0000000 | V6: 100 | W6: 97.1983344 | X6: 4
A7: 5 | B7: 2022215392 | C7: 费文博 | D7: 环境专硕 | E7: 95.37714286 | F7: 7.1 | G7: 0 | H7: 102.4771429 | I7: 0.9695225 | J7: 96.95224968 | K7: 87.7425 | L7: 0 | M7: 0 | N7: 87.7425 | O7: 0.9786682 | P7: 97.86682282 | Q7: 100 | R7: 0 | S7: 0 | T7: 100 | U7: 0.9014694 | V7: 90.14693951 | W7: 96.9119199 | X7: 5
A8: 6 | B8: 2022215402 | C8: 董光宇 | D8: 环境专硕 | E8: 95.25833333 | F8: 9 | G8: 0 | H8: 104.2583333 | I8: 0.9863741 | J8: 98.63741009 | K8: 85.225 | L8: 0 | M8: 0 | N8: 85.225 | O8: 0.9505884 | P8: 95.05883665 | Q8: 100 | R8: 7.6 | S8: 0 | T8: 107.6 | U8: 0.9699811 | V8: 96.99810691 | W8: 95.9684784 | X8: 6
A9: 7 | B9: 2022215403 | C9: 唐国瑾 | D9: 环境专硕 | E9: 95.23333333 | F9: 2 | G9: 0 | H9: 97.23333333 | I9: 0.9199115 | J9: 91.99115186 | K9: 85.92222222 | L9: 0 | M9: 0 | N9: 85.92222222 | O9: 0.9583651 | P9: 95.83650909 | Q9: 100 | R9: 10.93 | S9: 0 | T9: 110.93 | U9: 1.0000000 | V9: 100 | W9: 95.4837867 | X9: 7
A10: 8 | B10: 2022215401 | C10: 姚子旬 | D10: 环境专硕 | E10: 95.28285714 | F10: 5.5 | G10: 0 | H10: 100.7828571 | I10: 0.9534931 | J10: 95.34930871 | K10: 84.38611111 | L10: 0 | M10: 0 | N10: 84.38611111 | O10: 0.9412315 | P10: 94.12315109 | Q10: 100 | R10: 4.26 | S10: 0 | T10: 104.26 | U10: 0.9398720 | V10: 93.98719913 | W10: 94.3547874 | X10: 8
A11: 9 | B11: 2022215387 | C11: 陈宇轩 | D11: 环境专硕 | E11: 95.4114286 | F11: 3 | G11: 0 | H11: 97.9114286 | I11: 0.9263269 | J11: 92.63268867 | K11: 85.5250000 | L11: 0 | M11: 0 | N11: 85.57 | O11: 0.9544365 | P11: 95.44364508 | Q11: 100 | R11: 0 | S11: 0 | T11: 100 | U11: 0.9014694 | V11: 90.1469395 | W11: 94.3517832 | X11: 9
A12: 10 | B12: 2022215393 | C12: 熊峰 | D12: 环境专硕 | E12: 95.1583333 | F12: 2 | G12: 0.5 | H12: 96.6583333 | I12: 0.9144715 | J12: 91.44715208 | K12: 84.6875000 | L12: 0 | M12: 0 | N12: 84.6875 | O12: 0.9445932 | P12: 94.45931627 | Q12: 100 | R12: 0 | S12: 0 | T12: 100 | U12: 0.9014694 | V12: 90.1469395 | W12: 93.4256458 | X12: 10
A13: 11 | B13: 2022215394 | C13: 安宏坤 | D13: 环境专硕 | E13: 95.25833333 | F13: 2 | G13: 0.5 | H13: 96.75833333 | I13: 0.9154176 | J13: 91.54176074 | K13: 82.77777778 | L13: 0 | M13: 0 | N13: 82.77777778 | O13: 0.9232924 | P13: 92.32923739 | Q13: 100 | R13: 0 | S13: 0 | T13: 100 | U13: 0.9014694 | V13: 90.14693951 | W13: 91.9535123 | X13: 11
A14: 12 | B14: 2021215383 | C14: 王红燕 | D14: 环境专硕 | E14: 95.2294118 | F14: 9 | G14: 0 | H14: 104.2294118 | I14: 0.9861005 | J14: 98.61004778 | K14: 80.1400000 | L14: 0 | M14: 0 | N14: 80.14 | O14: 0.8938709 | P14: 89.38709498 | Q14: 100 | R14: 0 | S14: 0 | T14: 100 | U14: 0.9014694 | V14: 90.1469395 | W14: 91.3076700 | X14: 12
A15: 13 | B15: 2022215391 | C15: 许大山 | D15: 环境专硕 | E15: 95.1666667 | F15: 2 | G15: 0 | H15: 97.1666667 | I15: 0.9192808 | J15: 91.92807942 | K15: 79.5500000 | L15: 0 | M15: 0 | N15: 79.55 | O15: 0.8872902 | P15: 88.72901679 | Q15: 100 | R15: 0 | S15: 0 | T15: 100 | U15: 0.9014694 | V15: 90.1469395 | W15: 89.5106216 | X15: 13

Sheet 国际班
A1: 序号 | B1: 学号 | C1: 姓名 | D1: 方向 | E1: 德育成绩 | K1: 智育成绩 | Q1: 文体成绩 | W1: 总分 | X1: 排名
E2: 基础分组 | F2: 奖励分 | G2: 惩罚分 | H2: 个人德育总分 | I2: 个人德育总分/基准 | J2: 德育总成绩 | K2: 基础分 | L2: 奖励分 | M2: 惩罚分 | N2: 个人智育总分 | O2: 个人智育总分/基准 | P2: 智育总成绩 | Q2: 基础分 | R2: 奖励分 | S2: 惩罚分 | T2: 个人文体总分 | U2: 个人文体总分/基准 | V2: 文体总成绩
A3: 1 | B3: 2022210656 | C3: 王皓铖 | D3: 国际班 | E3: — | F3: — | G3: — | H3: — | I3: — | J3: — | K3: — | L3: — | M3: — | N3: — | O3: — | P3: — | Q3: — | R3: — | S3: — | T3: — | U3: — | V3: — | W3: — | X3: — | Y3: 助管
A4: 2 | B4: 2022210632 | C4: 李思远 | D4: 国际班 | E4: 95.7700 | F4: 17.6700 | G4: 0.0000 | H4: 113.4400 | I4: 1.0000 | J4: 100.0000 | K4: 92.0313 | L4: 10.0500 | M4: 0.0000 | N4: 102.0813 | O4: 1.0000 | P4: 100.0000 | Q4: 100.0000 | R4: 0.0000 | S4: 0.0000 | T4: 100.0000 | U4: 0.8197 | V4: 81.9672 | W4: 98.1967 | X4: 1
A5: 3 | B5: 2022210631 | C5: 冯若瑶 | D5: 国际班 | E5: 95.0525 | F5: 15.2500 | G5: 0.0000 | H5: 110.3025 | I5: 0.9723 | J5: 97.2342 | K5: 86.1089 | L5: 1.8500 | M5: 0.0000 | N5: 87.9589 | O5: 0.8666 | P5: 86.1656 | Q5: 100.0000 | R5: 0.0000 | S5: 0.0000 | T5: 100.0000 | U5: 0.8197 | V5: 81.9672 | W5: 87.9595 | X5: 2
A6: 4 | B6: 2022210638 | C6: 程海洋 | D6: 国际班 | E6: 95.2275 | F6: 0.0000 | G6: 0.0000 | H6: 95.2275 | I6: 0.8395 | J6: 83.9453 | K6: 83.6160 | L6: 7.5000 | M6: 0.0000 | N6: 91.1160 | O6: 0.8926 | P6: 89.2582 | Q6: 100.0000 | R6: 2.0000 | S6: 0.0000 | T6: 102.0000 | U6: 0.8361 | V6: 83.6066 | W6: 87.6305 | X6: 3
A7: 5 | B7: 2022210660 | C7: 朱燕萍 | D7: 国际班 | E7: 95.2800 | F7: 7.8000 | G7: 0.0000 | H7: 103.0800 | I7: 0.9087 | J7: 90.8674 | K7: 88.6545 | L7: 0.0000 | M7: 0.0000 | N7: 88.6545 | O7: 0.8685 | P7: 86.8470 | Q7: 100.0000 | R7: 4.3300 | S7: 0.0000 | T7: 104.3300 | U7: 0.8552 | V7: 85.5164 | W7: 87.5180 | X7: 4
A8: 6 | B8: 2022215386 | C8: 张钰萌 | D8: 国际班 | E8: 95.4900 | F8: 8.0000 | G8: 0.0000 | H8: 103.4900 | I8: 0.9123 | J8: 91.2288 | K8: 84.5778 | L8: 2.4000 | M8: 0.0000 | N8: 86.9778 | O8: 0.8520 | P8: 85.2044 | Q8: 100.0000 | R8: 14.7300 | S8: 0.0000 | T8: 114.7300 | U8: 0.9404 | V8: 94.0410 | W8: 87.2930 | X8: 5
A9: 7 | B9: 2022210672 | C9: 宁潇宇 | D9: 国际班 | E9: 96.6275 | F9: 8.0000 | G9: 0.0000 | H9: 104.6275 | I9: 0.9223 | J9: 92.2316 | K9: 87.8588 | L9: 0.0000 | M9: 0.0000 | N9: 87.8588 | O9: 0.8607 | P9: 86.0675 | Q9: 100.0000 | R9: 1.0000 | S9: 0.0000 | T9: 101.0000 | U9: 0.8279 | V9: 82.7869 | W9: 86.9723 | X9: 6
A10: 8 | B10: 2022210655 | C10: 马浩天 | D10: 国际班 | E10: 95.3850 | F10: 4.0000 | G10: 0.0000 | H10: 99.3850 | I10: 0.8761 | J10: 87.6102 | K10: 88.9818 | L10: 0.0000 | M10: 0.0000 | N10: 88.9818 | O10: 0.8717 | P10: 87.1676 | Q10: 100.0000 | R10: 1.0000 | S10: 0.0000 | T10: 101.0000 | U10: 0.8279 | V10: 82.7869 | W10: 86.8180 | X10: 7
A11: 9 | B11: 2022210654 | C11: 刘浩威 | D11: 国际班 | E11: 95.1575 | F11: 5.0000 | G11: 0.0000 | H11: 100.1575 | I11: 0.8829 | J11: 88.2912 | K11: 88.2909 | L11: 0.2500 | M11: 0.0000 | N11: 88.5409 | O11: 0.8674 | P11: 86.7357 | Q11: 100.0000 | R11: 1.0000 | S11: 0.0000 | T11: 101.0000 | U11: 0.8279 | V11: 82.7869 | W11: 86.6519 | X11: 8
A12: 10 | B12: 2022210605 | C12: 韩哲 | D12: 国际班 | E12: 95.7000 | F12: 6.4000 | G12: 0.0000 | H12: 102.1000 | I12: 0.9000 | J12: 90.0035 | K12: 85.4882 | L12: 0.0000 | M12: 0.0000 | N12: 85.4882 | O12: 0.8375 | P12: 83.7452 | Q12: 100.0000 | R12: 22.0000 | S12: 0.0000 | T12: 122.0000 | U12: 1.0000 | V12: 100.0000 | W12: 86.6224 | X12: 9
A13: 11 | B13: 2022215398 | C13: 李炯 | D13: 国际班 | E13: 95.2275 | F13: 6.4000 | G13: 0.0000 | H13: 101.6275 | I13: 0.8959 | J13: 89.5870 | K13: 87.9000 | L13: 0.0000 | M13: 0.0000 | N13: 87.9000 | O13: 0.8611 | P13: 86.1078 | Q13: 100.0000 | R13: 1.0000 | S13: 0.0000 | T13: 101.0000 | U13: 0.8279 | V13: 82.7869 | W13: 86.4716 | X13: 10
A14: 12 | B14: 2022210659 | C14: 刘浩 | D14: 国际班 | E14: 95.3325 | F14: 3.0000 | G14: 0.0000 | H14: 98.3325 | I14: 0.8668 | J14: 86.6824 | K14: 88.6955 | L14: 0.0000 | M14: 0.0000 | N14: 88.6955 | O14: 0.8689 | P14: 86.8871 | Q14: 100.0000 | R14: 1.0000 | S14: 0.0000 | T14: 101.0000 | U14: 0.8279 | V14: 82.7869 | W14: 86.4361 | X14: 11
A15: 13 | B15: 2022215400 | C15: 刘彧 | D15: 国际班 | E15: 95.4725 | F15: 0.0000 | G15: 0.0000 | H15: 95.4725 | I15: 0.8416 | J15: 84.1612 | K15: 88.8279 | L15: 0.0000 | M15: 0.0000 | N15: 88.8279 | O15: 0.8702 | P15: 87.0168 | Q15: 100.0000 | R15: 2.0000 | S15: 0.0000 | T15: 102.0000 | U15: 0.8361 | V15: 83.6066 | W15: 86.1047 | X15: 12
A16: 14 | B16: 2022215397 | C16: 王超然 | D16: 国际班 | E16: 95.1750 | F16: 10.0000 | G16: 0.0000 | H16: 105.1750 | I16: 0.9271 | J16: 92.7142 | K16: 85.7583 | L16: 0.0000 | M16: 0.0000 | N16: 85.7583 | O16: 0.8401 | P16: 84.0098 | Q16: 100.0000 | R16: 2.0000 | S16: 0.0000 | T16: 102.0000 | U16: 0.8361 | V16: 83.6066 | W16: 85.7104 | X16: 13
A17: 15 | B17: 2022210668 | C17: 高冰洁 | D17: 国际班 | E17: 95.8925 | F17: 2.0000 | G17: 0.0000 | H17: 97.8925 | I17: 0.8629 | J17: 86.2945 | K17: 87.2909 | L17: 0.0000 | M17: 0.0000 | N17: 87.2909 | O17: 0.8551 | P17: 85.5112 | Q17: 100.0000 | R17: 1.0000 | S17: 0.0000 | T17: 101.0000 | U17: 0.8279 | V17: 82.7869 | W17: 85.3954 | X17: 14
A18: 16 | B18: 2022210517 | C18: 刘明嘉 | D18: 国际班 | E18: 95.1575 | F18: 3.0000 | G18: 0.0000 | H18: 98.1575 | I18: 0.8653 | J18: 86.5281 | K18: 86.4400 | L18: 0.0000 | M18: 0.0000 | N18: 86.4400 | O18: 0.8468 | P18: 84.6776 | Q18: 100.0000 | R18: 0.0000 | S18: 0.0000 | T18: 100.0000 | U18: 0.8197 | V18: 81.9672 | W18: 84.7767 | X18: 15
A19: 17 | B19: 2022210684 | C19: 刘振华 | D19: 国际班 | E19: 95.9800 | F19: 7.0000 | G19: 0.0000 | H19: 102.9800 | I19: 0.9078 | J19: 90.7793 | K19: 84.9342 | L19: 0.0000 | M19: 0.0000 | N19: 84.9342 | O19: 0.8320 | P19: 83.2025 | Q19: 100.0000 | R19: 1.0000 | S19: 0.0000 | T19: 101.0000 | U19: 0.8279 | V19: 82.7869 | W19: 84.6763 | X19: 16
A20: 18 | B20: 2022215399 | C20: 杜帅豪 | D20: 国际班 | E20: 95.4900 | F20: 6.4000 | G20: 0.0000 | H20: 101.8900 | I20: 0.8982 | J20: 89.8184 | K20: 84.0619 | L20: 0.0000 | M20: 0.0000 | N20: 84.0619 | O20: 0.8235 | P20: 82.3480 | Q20: 100.0000 | R20: 1.0000 | S20: 0.0000 | T20: 101.0000 | U20: 0.8279 | V20: 82.7869 | W20: 83.8860 | X20: 17
A21: 19 | B21: 2022210546 | C21: 郭建豪 | D21: 国际班 | E21: 95.2800 | F21: 4.0000 | G21: 0.0000 | H21: 99.2800 | I21: 0.8752 | J21: 87.5176 | K21: 84.7036 | L21: 0.0000 | M21: 0.0000 | N21: 84.7036 | O21: 0.8298 | P21: 82.9766 | Q21: 100.0000 | R21: 1.0000 | S21: 0.0000 | T21: 101.0000 | U21: 0.8279 | V21: 82.7869 | W21: 83.8658 | X21: 18
A22: 20 | B22: 2022215303 | C22: 尹海川 | D22: 国际班 | E22: 95.6825 | F22: 0.0000 | G22: 0.0000 | H22: 95.6825 | I22: 0.8435 | J22: 84.3464 | K22: 84.7154 | L22: 0.4000 | M22: 0.0000 | N22: 85.1154 | O22: 0.8338 | P22: 83.3800 | Q22: 100.0000 | R22: 1.0000 | S22: 0.0000 | T22: 101.0000 | U22: 0.8279 | V22: 82.7869 | W22: 83.5140 | X22: 19
A23: 21 | B23: 2022210677 | C23: 丁家正 | D23: 国际班 | E23: 95.5775 | F23: 0.0000 | G23: 0.0000 | H23: 95.5775 | I23: 0.8425 | J23: 84.2538 | K23: 84.1500 | L23: 0.6000 | M23: 0.0000 | N23: 84.7500 | O23: 0.8302 | P23: 83.0221 | Q23: 100.0000 | R23: 1.0000 | S23: 0.0000 | T23: 101.0000 | U23: 0.8279 | V23: 82.7869 | W23: 83.2449 | X23: 20
A24: 22 | B24: 2022210670 | C24: 胡昀涛 | D24: 国际班 | E24: 95.4375 | F24: 0.0000 | G24: 0.0000 | H24: 95.4375 | I24: 0.8413 | J24: 84.1304 | K24: 84.5273 | L24: 0.0000 | M24: 0.0000 | N24: 84.5273 | O24: 0.8280 | P24: 82.8039 | Q24: 100.0000 | R24: 1.0000 | S24: 0.0000 | T24: 101.0000 | U24: 0.8279 | V24: 82.7869 | W24: 83.0675 | X24: 21
